Workbook

Sheet стр.1
DD1: Приложение
AZ2: к Общим требованиям к порядку составления и утверждения отчета о результатах деятельности государственного (муниципального) учреждения и об использовании закрепленного за ним государственного (муниципального) имущества, утвержденным приказом Министерства финансов Российской Федерации от 02.11.2021 № 171н
AZ3: (в ред. Приказов Минфина России от 08.11.2022 № 159н, от 31.01.2023 № 10н)
DD5: (рекомендуемый образец)
A7: Отчет
A8: о результатах деятельности государственного (муниципального) учреждения и об использовании закрепленного за ним государственного (муниципального) имущества
CP10: КОДЫ
AJ11: на 1 | BF11: 20 | BN11: г. | CN11: Дата
BZ12: по Сводному реестру
CN13: ИНН
A14: Учреждение | AB14: Муниципальное бюджетное общеобразовательное учреждение "Средняя общеобразовательная школа №85 с углубленным изучением отдельных предметов" Ново-Савиновского района г.Казани | CN14: КПП
A15: Тип учреждения
AB16: (казенное - "01", бюджетное - "02", автономное - "03")
A17: Орган, осуществляющий функции и полномочия учредителя | CN17: БК
A18: Публично-правовое образование | CN18: по ОКТМО
A19: Периодичность: годовая
A21: Раздел 1. Результаты деятельности
A23: 1.
A24: 2.
A26: Раздел 2. Использование имущества, закрепленного за учреждением
A28: 1.
A29: 2.
A31: Раздел 3. Эффективность деятельности
A32: 1.
A33: 2.
A35: Руководитель
A36: (уполномоченное лицо)
A37: Учреждения
AH38: (должность) | BP38: (расшифровка подписи)
A40: Исполнитель
AH41: (должность) | BP41: (телефон)
A43: " | C43: 01 | G43: " | I43: 01 | V43: 20 | Z43: 24 | AD43: г.

Sheet стр.2_5
FK1: (в ред. Приказа Минфина России от 31.01.2023 № 10н)
A3: Сведения о поступлениях и выплатах учреждения
EP5: КОДЫ
BS6: на 1 | BX6: января | CK6: 20 | CN6: 24 | CQ6: г. | EN6: Дата
EN7: ИНН
A8: Учреждение | AB8: Муниципальное бюджетное общеобразовательное учреждение "Средняя общеобразовательная школа №85 с углубленным изучением отдельных предметов" Ново-Савиновского района г.Казани | EN8: КПП
A9: Орган, осуществляющий
A10: функции и полномочия учредителя | EN10: Глава по БК
A11: Публично-правовое образование | EN11: по ОКТМО
A12: Периодичность: годовая
A13: Единица измерения: руб. | EN13: по ОКЕИ | EP13: 383
A14: Раздел 1. Сведения о поступлениях учреждения
A16: Наименование показателя | BS16: Код строки | CB16: Сумма поступлений | DT16: Изменение, % | EP16: Доля в общей сумме поступлений, %
CB17: за 2023 год (за отчетный финансовый год) | CX17: за 2022 год (за год, предшествующий отчетному)
A18: 1 | BS18: 2 | CB18: 3 | CX18: 4 | DT18: 5 | EP18: 6
A19: Субсидии на финансовое обеспечение выполнения государственного (муниципального) задания | BS19: 0100 | CB19: 82138992.05 | CX19: 75228520.04
A20: Субсидии на финансовое обеспечение выполнения государственного задания из бюджета Федерального фонда обязательного медицинского страхования | BS20: 0200 | CB20: 377057.44
A21: Субсидии на иные цели | BS21: 0300 | CX21: 872202.53
A22: Субсидии на осуществление капитальных вложений | BS22: 0400 | CB22: 0.00
A23: Гранты в форме субсидий, всего | BS23: 0500 | CB23: =CB24+CB25 -> 0.00 | CX23: =CX24+CX25 -> 0.00
A24: в том числе: гранты в форме субсидий из федерального бюджета | BS24: 0501
A25: гранты в форме субсидий из бюджетов субъектов Российской Федерации и местных бюджетов | BS25: 0502
A26: Гранты, предоставляемые юридическими и физическими лицами (за исключением грантов в форме субсидий, предоставляемых из бюджетов бюджетной системы Российской Федерации) | BS26: 0600 | CB26: =CB27 -> 0.00 | CX26: =CX27 -> 0.00
A27: из них: гранты, предоставляемые юридическими лицами (операторами), источником финансового обеспечения которых являются субсидии и имущественные взносы, полученные из бюджетов бюджетной системы Российской Федерации | BS27: 0610
A28: Пожертвования и иные безвозмездные перечисления от физических и юридических лиц, в том числе иностранных организаций | BS28: 0700
A29: Доходы от приносящей доход деятельности, компенсаций затрат (за исключением доходов от собственности), всего | BS29: 0800 | CB29: =CB30+CB31+CB32+CB33+CB34+CB35+CB36 -> 7734438.00 | CX29: =CX30+CX31+CX32+CX33+CX34+CX35+CX36 -> 7839654.80
A30: в том числе: доходы в виде платы за оказание услуг (выполнение работ) в рамках установленного государственного задания | BS30: 0801
A31: доходы от оказания услуг, выполнения работ, реализации готовой продукции сверх установленного государственного задания по видам деятельности, отнесенным в соответствии с учредительными документами к основным | BS31: 0802 | CB31: 7734438.00 | CX31: 7839654.80
A32: доходы от платы за пользование служебными жилыми помещениями и общежитиями, включающей плату за пользование и плату за содержание жилого помещения | BS32: 0803
A33: доходы от оказания услуг в рамках обязательного медицинского страхования | BS33: 0804
A34: доходы от оказания медицинских услуг, предоставляемых женщинам в период беременности, женщинам и новорожденным в период родов и в послеродовой период | BS34: 0805
A35: возмещение расходов, понесенных в связи с эксплуатацией имущества, находящегося в оперативном управлении учреждения | BS35: 0806
A36: прочие доходы от оказания услуг, выполнения работ, компенсации затрат учреждения, включая возмещение расходов по решению судов (возмещение судебных издержек) | BS36: 0807
A37: Наименование показателя | BS37: Код строки | CB37: Сумма поступлений | DT37: Изменение, % | EP37: Доля в общей сумме поступлений, %
CB38: за 2023год (за отчетный финансовый год) | CX38: за 2022 год (за год, предшествующий отчетному)
A39: 1 | BS39: 2 | CB39: 3 | CX39: 4 | DT39: 5 | EP39: 6
A40: Доходы от собственности, всего | BS40: 0900 | CB40: =CB41+CB42+CB43+CB44+CB45+CB46+CB47+CB48 -> 8000.00 | CX40: =CX41+CX42+CX43+CX44+CX45+CX46+CX47+CX48 -> 4000.00
A41: доходы в виде арендной либо иной платы за передачу в возмездное пользование государственного (муниципального) имущества | BS41: 0901 | CB41: 8000.00 | CX41: 4000.00
A42: доходы от распоряжения правами на результаты интеллектуальной деятельности и средствами индивидуализации | BS42: 0902
A43: проценты по депозитам учреждения в кредитных организациях | BS43: 0903
A44: проценты по остаткам средств на счетах учреждения в кредитных организациях | BS44: 0904
A45: проценты, полученные от предоставления займов | BS45: 0905
A46: проценты по иным финансовым инструментам | BS46: 0906
A47: доходы в виде прибыли, приходящейся на доли в уставных (складочных) капиталах хозяйственных товариществ и обществ, или дивидендов по акциям, принадлежащим учреждению | BS47: 0907
A48: прочие доходы от использования имущества, находящегося в оперативном управлении учреждения | BS48: 0908
A49: Поступления доходов от штрафов, пеней, неустоек, возмещения ущерба | BS49: 1000
A50: Поступления доходов от выбытия нефинансовых активов | BS50: 1100 | CB50: 60160.00
A51: Поступления доходов от выбытия финансовых активов | BS51: 1200
A52: Итого | BS52: 9000 | CB52: =CB19+CB20+CB21+CB22+CB23+CB26+CB28+CB29+CB40+CB49+CB50 -> 90318647.49 | CX52: =CX19+CX20+CX21+CX22+CX23+CX26+CX28+CX29+CX40+CX49+CX50 -> 83944377.37 | DT52: х | EP52: 100%
B54: Раздел 2. Сведения о выплатах учреждения
A56: Наименование показателя | S56: Код строки | Y56: Сумма выплат за отчетный период, всего | AF56: Доля в общей сумме выплат, % | AL56: в том числе по источникам финансового обеспечения обязательств по выплатам
AL57: за счет средств субсидии на выполнение государствен-ного задания | AU57: доля в общей сумме выплат, отраженных в графе 3, % | BC57: за счет средств субсидии на иные цели | BJ57: доля в общей сумме выплат, отраженных в графе 3, % | BR57: за счет средств гранта в форме субсидии | CX57: ОМС | DG57: доля в общей сумме выплат, отраженных в графе 3, % | DO57: за счет средств от приносящей доход деятельности, всего | DX57: доля в общей сумме выплат, отраженных в графе 3, % | EF57: из них:
BR58: в том числе: | EF58: за счет средств, полученных от оказания услуг, выполнения работ, реализации продукции | EN58: доля в общей сумме выплат, отраженных в графе 3, % | EV58: за счет без-возмездных поступлений | FD58: доля в общей сумме выплат, отраженных в графе 3, %
BR59: из федерального бюджета | BZ59: доля в общей сумме выплат, отраженных в графе 3, % | CH59: из бюджетов субъектов Российской Федерации и местных бюджетов | CP59: доля в общей сумме выплат, отраженных в графе 3, %
A60: 1 | S60: 2 | Y60: 3 | AF60: 4 | AL60: 5 | AU60: 6 | BC60: 7 | BJ60: 8 | BR60: 9 | BZ60: 10 | CH60: 11 | CP60: 12 | CX60: 13 | DG60: 14 | DO60: 15 | DX60: 16 | EF60: 17 | EN60: 18 | EV60: 19 | FD60: 20
A61: Оплата труда и компенсационные выплаты работникам | S61: 0100 | AL61: 48015312.13 | BC61: 194199.90 | DO61: 4598948.00 | EF61: 4598948.00
A62: Взносы по обязательному социальному страхованию | S62: 0200 | AL62: 14519689.68 | BC62: 58648.37 | DO62: 1388882.07 | EF62: 1388882.07
A63: Приобретение товаров, работ, услуг, всего | S63: 0300 | AL63: =AL64+AL65+AL66+AL67+AL68+AL69+AL70+AL71+AL72+AL73 -> 14252234.00 | BC63: =BC64+BC65+BC66+BC67+BC68+BC69+BC70+BC71+BC72+BC73 -> 116767.50 | CX63: =CX64+CX65+CX66+CX67+CX68+CX69+CX70+CX71+CX72+CX73 -> 0.00 | DO63: =DO64+DO65+DO66+DO67+DO68+DO69+DO70+DO71+DO72+DO73 -> 1638380.00 | EF63: =EF64+EF65+EF66+EF67+EF68+EF69+EF70+EF71+EF72+EF73 -> 1633772.37 | EV63: =EV64+EV65+EV66+EV67+EV68+EV69+EV70+EV71+EV72+EV73 -> 0.00
A64: из них: услуги связи | S64: 0301
A65: транспортные услуги | S65: 0302
A66: коммунальные услуги | S66: 0303 | AL66: 5203774.53 | DO66: 84253.00 | EF66: 84253.00
A67: арендная плата за пользование имуществом | S67: 0304
A68: работы, услуги по содержанию имущества | S68: 0305 | AL68: 286548.77 | DO68: 210000.00 | EF68: 210000.00
A69: прочие работы, услуги | S69: 0306 | AL69: 5194235.07 | BC69: 69825.00 | DO69: 25545.50 | EF69: 25545.50
A70: основные средства | S70: 0307 | AL70: 3009239.85 | DO70: 338300.00 | EF70: 338300.00
A71: нематериальные активы | S71: 0308
A72: непроизведенные активы | S72: 0309
A73: материальные запасы | S73: 0310 | AL73: 558435.78 | BC73: 46942.50 | DO73: 980281.50 | EF73: 975673.87
A74: Обслуживание долговых обязательств | S74: 0400
A75: Безвозмездные перечисления организациям | S75: 0500
A76: Социальное обеспечение | S76: 0600 | AL76: 195558.82
A77: Уплата налогов, сборов, прочих платежей в бюджет (за исключением взносов по обязательному социальному страхованию), всего | S77: 0700 | AL77: =AL78+AL79+AL80+AL81+AL82+AL83+AL84+AL85 -> 2890248.13 | BC77: =BC78+BC79+BC80+BC81+BC82+BC83+BC84+BC85 -> 0.00 | CX77: =CX78+CX79+CX80+CX81+CX82+CX83+CX84+CX85 -> 0.00 | DO77: =DO78+DO79+DO80+DO81+DO82+DO83+DO85 -> 0.00 | EF77: =EF78+EF79+EF80+EF81+EF82+EF83+EF84+EF85 -> 0.00 | EV77: =EV78+EV79+EV80+EV81+EV82+EV83+EV84+EV85 -> 0.00
A78: из них: налог на прибыль | S78: 0701
A79: налог на добавленную стоимость | S79: 0702
A80: налог на имущество организаций | S80: 0703 | AL80: 1242661.18
A81: земельный налог | S81: 0704 | AL81: 682476.00
A82: транспортный налог | S82: 0705
A83: водный налог | S83: 0706
A84: государственные пошлины | S84: 0707
A85: прочие налоги, платежи в бюджет | S85: 0708 | AL85: 965110.95
A86: Наименование показателя | S86: Код строки | Y86: Сумма выплат за отчетный период, всего | AF86: Доля в общей сумме выплат, % | AL86: в том числе по источникам финансового обеспечения обязательств по выплатам
AL87: за счет средств субсидии на выполнение государствен-ного задания | AU87: доля в общей сумме выплат, отраженных в графе 3, % | BC87: за счет средств субсидии на иные цели | BJ87: доля в общей сумме выплат, отраженных в графе 3, % | BR87: за счет средств гранта в форме субсидии | CX87: ОМС | DG87: доля в общей сумме выплат, отраженных в графе 3, % | DO87: за счет средств от приносящей доход деятельности, всего | DX87: доля в общей сумме выплат, отраженных в графе 3, % | EF87: из них:
BR88: в том числе: | EF88: за счет средств, полученных от оказания услуг, выполнения работ, реализации продукции | EN88: доля в общей сумме выплат, отраженных в графе 3, % | EV88: за счет без-возмездных поступлений | FD88: доля в общей сумме выплат, отраженных в графе 3, %
BR89: из федерального бюджета | BZ89: доля в общей сумме выплат, отраженных в графе 3, % | CH89: из бюджетов субъектов Российской Федерации и местных бюджетов | CP89: доля в общей сумме выплат, отраженных в графе 3, %
A90: 1 | S90: 2 | Y90: 3 | AF90: 4 | AL90: 5 | AU90: 6 | BC90: 7 | BJ90: 8 | BR90: 9 | BZ90: 10 | CH90: 11 | CP90: 12 | CX90: 13 | DG90: 14 | DO90: 15 | DX90: 16 | EF90: 17 | EN90: 18 | EV90: 19 | FD90: 20
A91: Приобретение финансовых активов, всего: | S91: 0800 | AL91: =AL92+AL93 -> 0.00 | BC91: =BC92+BC93 -> 0.00 | CX91: =CX92+CX93 -> 0.00 | DO91: =DO92+DO93 -> 0.00 | EF91: =EF92+EF93 -> 0.00 | EV91: =EV92+EV93 -> 0.00
A92: из них: приобретение ценных бумаг, кроме акций и иных форм участия в капитале | S92: 0801
A93: приобретение акций и иные формы участия в капитале | S93: 0802
A94: Иные выплаты, всего | S94: 0900 | AL94: =AL95+AL96 -> 0.00 | BC94: =BC95+BC96 -> 0.00 | CX94: =CX95+CX96 -> 0.00 | DO94: =DO95+DO96 -> 0.00 | EF94: =EF95+EF96 -> 0.00 | EV94: =EV95+EV96 -> 0.00
A95: из них: перечисление денежных обеспечений | S95: 0901
A96: перечисление денежных средств на депозитные счета | S96: 0902
A97: Итого | S97: 9000 | AF97: 100% | AL97: =AL61+AL62+AL63+AL74+AL75+AL76+AL77+AL91+AL94 -> 79873042.76 | AU97: 100% | BC97: =BC61+BC62+BC63 -> 369615.77 | BJ97: 100% | BZ97: 100% | CP97: 100% | CX97: =CX61+CX62+CX63+CX74+CX75+CX76+CX77+CX91+CX94 -> 0 | DG97: 100% | DO97: =DO61+DO62+DO63+DO74+DO75+DO77+DO91+DO94 -> 7626210.07 | EF97: =EF61+EF62+EF63+EF74+EF75+EF77+EF76+EF91+EF94 -> 7621602.44 | EN97: 100% | EV97: =EV61+EV62+EV63+EV74+EV75+EV76+EV77+EV91+EV94 -> 0.00 | FD97: 100%
A99: Руководитель (уполномоченное лицо) Учреждения
Y100: (должность) | BR100: (расшифровка подписи)
A101: Исполнитель | Y101: Вед.бухгалтер отдела отчетности ЦБО И.С. Ахметова | BR101: 598-33-22 (вн.5105)
Y102: (должность) | BR102: (телефон)
A104: " | F104: " | R104: 20 | X104: г.

Sheet стр.6
B1: Сведения об оказываемых услугах, выполняемых работах сверх установленного государственного (муниципального) задания, а также выпускаемой продукции
BS3: на 1 | BX3: января | CK3: 20 | CN3: 24 | CQ3: г. | EW3: КОДЫ
EU4: Дата
EU5: по Сводному реестру
EU6: ИНН
A7: Учреждение | AK7: Муниципальное бюджетное общеобразовательное учреждение "Средняя общеобразовательная школа №85 с углубленным изучением отдельных предметов" Ново-Савиновского района г.Казани | EU7: КПП
A8: Орган, осуществляющий функции и полномочия учредителя | EU8: глава по БК
A9: Публично-правовое образование | EU9: по ОКТМО
A10: Периодичность: годовая
A12: Раздел 1. Сведения об услугах, оказываемых сверх установленного государственного (муниципального) задания
A14: Наименование оказываемых услуг | AK14: Код по ОКВЭД | AT14: Код строки | BB14: Объем оказанных услуг | CG14: Доход от оказания услуг, руб. | CX14: Цена (тариф) | DK14: Справочно: реквизиты акта, которым установлена цена (тариф)
BB15: единица измерения | BX15: всего | DK15: кем издан (ФОИВ, учреждение) | EF15: дата | EW15: номер
BB16: наименование | BM16: код по ОКЕИ
A17: 1 | AK17: 2 | AT17: 3 | BB17: 4 | BM17: 5 | BX17: 6 | CG17: 7 | CX17: 8 | DK17: 9 | EF17: 10 | EW17: 11
A18: Платные образовательные услуги | AT18: 1000 | BX18: 1 | CG18: 7734438.00 | CX18: =BX18*CG18 -> 7734438.00
A19: Родительская плата за уход и писморт детей в ДОУ | AT19: 2000 | BX19: 1 | CG19: 0.00 | CX19: =BX19*CG19 -> 0.00
A21: Итого | AT21: 9000 | BB21: х | BM21: х | CG21: =CG18+CG19+CG20 -> 7734438.00 | DK21: х | EF21: х | EW21: х
A23: Раздел 2. Сведения о работах, выполняемых сверх установленного государственного (муниципального) задания
A25: Наименование выполняемых работ | AK25: Код по ОКВЭД | AT25: Код строки | BB25: Объем выполненных работ | CG25: Доход от выполнения работ, руб. | CX25: Цена (тариф) | DK25: Справочно: реквизиты акта, которым установлена цена (тариф)
BB26: единица измерения | BX26: всего | DK26: кем издан (ФОИВ, учреждение) | EF26: дата | EW26: номер
BB27: наименование | BM27: код по ОКЕИ
A28: 1 | AK28: 2 | AT28: 3 | BB28: 4 | BM28: 5 | BX28: 6 | CG28: 7 | CX28: 8 | DK28: 9 | EF28: 10 | EW28: 11
AT29: 1000
AT30: 2000
A32: Итого | AT32: 9000 | BB32: х | BM32: х | DK32: х | EF32: х | EW32: х
A34: Раздел 3. Сведения о производимой продукции
A36: Наименование производимой продукции | AK36: Код по ОКВЭД | AT36: Код строки | BB36: Объем произведенной продукции | CG36: Доход от реализации продукции, руб. | CX36: Цена (тариф) | DK36: Справочно: реквизиты акта, которым установлена цена (тариф)
BB37: единица измерения | BX37: всего | DK37: кем издан (ФОИВ, учреждение) | EF37: дата | EW37: номер
BB38: наименование | BM38: код по ОКЕИ
A39: 1 | AK39: 2 | AT39: 3 | BB39: 4 | BM39: 5 | BX39: 6 | CG39: 7 | CX39: 8 | DK39: 9 | EF39: 10 | EW39: 11
AT40: 1000
AT41: 2000
A43: Итого | AT43: 9000 | BB43: х | BM43: х | DK43: х | EF43: х | EW43: х
A45: Руководитель (уполномоченное лицо) Учреждения
AB46: (должность) | BM46: (подпись) | DK46: (расшифровка подписи)
A47: Исполнитель | AB47: ведущий бухгалтер отдела отчености ЦБО | BM47: Ахметова И.С. | DK47: 598-33-22 (вн.5105)
AB48: (должность) | BM48: (фамилия, инициалы) | DK48: (телефон)
A50: " | F50: " | U50: 20 | AA50: г.

Sheet стр.7
B1: Сведения о доходах учреждения в виде прибыли, приходящейся на доли в уставных (складочных) капиталах хозяйственных товариществ и обществ, или дивидендов по акциям, принадлежащим учреждению 1
EV3: КОДЫ
BS4: на 1 | CK4: 20 | CQ4: г. | ET4: Дата
ET5: по Сводному реестру
ET6: ИНН
A7: Учреждение | ET7: КПП
A8: Орган, осуществляющий функции и полномочия учредителя | ET8: глава по БК
A9: Публично-правовое образование | ET9: по ОКТМО
A10: Периодичность: годовая
A12: Организация (предприятие) | BL12: Код строки | BT12: Сумма вложений в уставный капитал | CI12: Доля в уставном капитале, % | CY12: Вид вложений 2 | DL12: Задолженность перед учреждением по перечислению части прибыли (дивидендов) на начало года | DZ12: Доходы, подлежащие получению за отчетный период | EV12: Задолженность перед учреждением по перечислению части прибыли (дивидендов) на конец отчетного периода
A13: наименование | V13: ИНН | AF13: код по ОКОПФ | AO13: дата создания | AY13: основной вид деятельности | DZ13: начислено, руб. | EK13: поступило, руб.
A14: 1 | V14: 2 | AF14: 3 | AO14: 4 | AY14: 5 | BL14: 6 | BT14: 7 | CI14: 8 | CY14: 9 | DL14: 10 | DZ14: 11 | EK14: 12 | EV14: 13
BL15: 1000
BL16: 2000
AY18: Итого | BL18: 9000 | CI18: х | CY18: х
A20: Руководитель (уполномоченное лицо) Учреждения
V21: (должность) | BL21: (подпись) | DL21: (расшифровка подписи)
A22: Исполнитель
V23: (должность) | BL23: (фамилия, инициалы) | DL23: (телефон)
A25: " | F25: " | R25: 20 | X25: г.
A28: 1_Сведения формируются в случаях, если в соответствии с законодательством Российской Федерации установлена возможность создания хозяйственных товариществ и обществ.
A29: 2_Указывается вид вложений "1" - денежные средства, "2" - имущество, "3" - право пользования нематериальными активами.

Sheet стр.8
FK1: (в ред. Приказа Минфина России от 31.01.2023 № 10н)
A3: Сведения о кредиторской задолженности и обязательствах учреждения
EP5: КОДЫ
BS6: на 1 | BX6: января | CK6: 20 | CN6: 24 | CQ6: г. | EN6: Дата
EN7: по Сводному реестру
EN8: ИНН
A9: Учреждение | Z9: Муниципальное бюджетное общеобразовательное учреждение "Средняя общеобразовательная школа №85 с углубленным изучением отдельных предметов" Ново-Савиновского района г.Казани | EN9: КПП
A10: Орган, осуществляющий
A11: функции и полномочия учредителя | EN11: глава по БК
A12: Публично-правовое образование | EN12: по ОКТМО
A13: Периодичность: годовая
A14: Единица измерения: руб. | EN14: по ОКЕИ | EP14: 383
A16: Наименование показателя | AU16: Код строки | BA16: Объем кредиторской задолженности на начало года | BR16: Объем кредиторской задолженности на конец отчетного периода | DV16: Объем отложенных обязательств учреждения
BA17: всего | BI17: из нее срок оплаты наступил в отчетном финансовом году | BR17: всего | BY17: из нее срок оплаты наступает в: | DV17: всего | EC17: в том числе:
BY18: 1 квартале, всего | CG18: из нее: в январе | CO18: 2 квартале | CW18: 3 квартале | DE18: 4 квартале | DM18: в очередном финансовом году и плановом периоде | EC18: по оплате труда | EJ18: по претензионным требованиям | EU18: по непоступившим расчетным документам | FF18: иные
A19: 1 | AU19: 2 | BA19: 3 | BI19: 4 | BR19: 5 | BY19: 6 | CG19: 7 | CO19: 8 | CW19: 9 | DE19: 10 | DM19: 11 | DV19: 12 | EC19: 13 | EJ19: 14 | EU19: 15 | FF19: 16
A20: По выплате заработной платы | AU20: 1000 | BA20: 1858077.83 | BI20: =BA20 -> 1858077.83 | BR20: 1902165.53 | BY20: =BR20/2 -> 951082.77 | CG20: 0.00 | CO20: =BR20/2 -> 951082.77 | CW20: 0.00 | DE20: 0.00 | DM20: 0.00 | DV20: 0.00 | EC20: 0.00 | EJ20: 0.00 | FF20: 0.00
A21: По выплате стипендий, пособий, пенсий | AU21: 2000 | BA21: 0.00 | BI21: =BA21 -> 0.00 | BR21: 0.00 | BY21: 0.00 | CG21: 0.00 | CO21: 0.00 | CW21: 0.00 | DE21: 0.00 | DM21: 0.00 | DV21: 0.00 | EC21: 0.00 | EJ21: 0.00 | EU21: 0.00 | FF21: 0.00
A22: По перечислению в бюджет, всего | AU22: 3000 | BA22: =BA23+BA24+BA25+BA26 -> 561139.50 | BI22: =BI26+BI25+BI24+BI23 -> 561139.50 | BR22: =BR23+BR24+BR25+BR26+BR27+BR28+BR29 -> 574453.99 | BY22: =BR22/2 -> 287227.00 | CG22: =CG23+CG24+CG25+CG26 -> 0.00 | CO22: =BR22/2 -> 287227.00 | CW22: =CW23+CW24+CW25+CW26 -> 0.00 | DE22: =DE23+DE24+DE25+DE26 -> 0.00 | DM22: =DM23+DM24+DM25+DM26 -> 0.00 | DV22: =DV23+DV24+DV25+DV26 -> 0.00 | EC22: =EC23+EC24+EC25+EC26 -> 0.00 | EJ22: =EJ23+EJ24+EJ25+EJ26 -> 0.00 | EU22: =EU23+EU24+EU25+EU26 -> 0.00 | FF22: =FF23+FF24+FF25+FF26 -> 0.00
A23: в том числе: по перечислению удержанного налога на доходы физических лиц | AU23: 3100 | BA23: 0.00 | BI23: =BA23 -> 0.00 | BR23: 0.00 | BY23: 0.00 | CG23: 0.00 | CO23: 0.00 | CW23: 0.00 | DE23: 0.00 | DM23: 0.00 | DV23: 0.00 | EC23: 0.00 | EJ23: 0.00 | EU23: 0.00 | FF23: 0.00
A24: по оплате страховых взносов на обязательное социальное страхование | AU24: 3200 | BA24: 561139.50 | BI24: =BA24 -> 561139.50 | BR24: 574453.99 | BY24: =BR24/2 -> 287227.00 | CG24: 0.00 | CO24: =BR24/2 -> 287227.00 | CW24: 0.00 | DE24: 0.00 | DM24: 0.00 | DV24: 0.00 | EC24: 0.00 | EJ24: 0.00 | EU24: 0.00 | FF24: 0.00
A25: по оплате налогов, сборов, за исключением страховых взносов на обязательное социальное страхование | AU25: 3300 | BA25: 0.00 | BI25: 0.00 | BR25: 0.00 | BY25: 0.00 | CG25: 0.00 | CO25: =BY25 -> 0.00 | CW25: 0.00 | DE25: 0.00 | DM25: 0.00 | DV25: 0.00 | EC25: 0.00 | EJ25: 0.00 | EU25: 0.00 | FF25: 0.00
A26: по возврату в бюджет средств субсидий (грантов в форме субсидий) | AU26: 3400 | BA26: =BA27+BA28+BA29 -> 0.00 | BI26: =BI27+BI28+BI29 -> 0.00 | BR26: =BR27+BR28+BR29 -> 0.00 | BY26: =BY27+BY28+BY29 -> 0.00 | CG26: =CG27+CG28+CG29 -> 0.00 | CO26: =CO27+CO28+CO29 -> 0.00 | CW26: =CW27+CW28+CW29 -> 0.00 | DE26: =DE27+DE28+DE29 -> 0.00 | DM26: =DM27+DM28+DM29 -> 0.00 | DV26: =DV27+DV28+DV29 -> 0.00 | EC26: =EC27+EC28+EC29 -> 0.00 | EJ26: =EJ27+EJ28+EJ29 -> 0.00 | EU26: =EU27+EU28+EU29 -> 0.00 | FF26: =FF27+FF28+FF29 -> 0.00
A27: из них: в связи с невыполнением государственного задания | AU27: 3410 | BA27: 0.00 | BI27: 0.00 | BR27: 0.00 | BY27: 0.00 | CG27: 0.00 | CO27: 0.00 | CW27: 0.00 | DE27: 0.00 | DM27: 0.00 | DV27: 0.00 | EC27: 0.00 | EJ27: 0.00 | EU27: 0.00 | FF27: 0.00
A28: в связи с недостижением результатов предоставления субсидий (грантов в форме субсидий) | AU28: 3420 | BA28: 0.00 | BI28: 0.00 | BR28: 0.00 | BY28: 0.00 | CG28: 0.00 | CO28: 0.00 | CW28: 0.00 | DE28: 0.00 | DM28: 0.00 | DV28: 0.00 | EC28: 0.00 | EJ28: 0.00 | EU28: 0.00 | FF28: 0.00
A29: в связи с невыполнением условий соглашений, в том числе по софинансированию расходов | AU29: 3430 | BA29: 0.00 | BI29: 0.00 | BR29: 0.00 | BY29: 0.00 | CG29: 0.00 | CO29: 0.00 | CW29: 0.00 | DE29: 0.00 | DM29: 0.00 | DV29: 0.00 | EC29: 0.00 | EJ29: 0.00 | EU29: 0.00 | FF29: 0.00
A30: По оплате товаров, работ, услуг, всего | AU30: 4000 | BA30: =BA31 -> 8457.71 | BI30: =BI31 -> 8457.71 | BR30: 1025503.29 | BY30: =BR30 -> 1025503.29 | CG30: 925380.02 | CO30: =CO31 -> 0.00 | CW30: =CW31 -> 0.00 | DE30: =DE31 -> 0.00 | DM30: =DM31 -> 0.00 | DV30: =DV31 -> 0.00 | EC30: =EC31 -> 0.00 | EJ30: =EJ31 -> 0.00 | EU30: =EU31 -> 0.00 | FF30: =FF31 -> 0.00
A31: из них: по публичным договорам | AU31: 4100 | BA31: 8457.71 | BI31: =BA31 -> 8457.71 | BR31: =BR30 -> 1025503.29 | BY31: =BR30 -> 1025503.29 | CG31: 925380.02 | CO31: 0.00 | CW31: 0.00 | DE31: 0.00 | DM31: 0.00 | DV31: 0.00 | EC31: 0.00 | EJ31: 0.00 | EU31: 0.00 | FF31: 0.00
A32: По оплате прочих расходов, всего | AU32: 5000 | BA32: =BA33 -> 0.00 | BI32: =BI33 -> 0.00 | BR32: =BR33 -> 0.00 | BY32: =BY33 -> 0.00 | CG32: =CG33 -> 0.00 | CO32: =CO33 -> 0.00 | CW32: =CW33 -> 0.00 | DE32: =DE33 -> 0.00 | DM32: =DM33 -> 0.00 | DV32: =DV33 -> 0.00 | EC32: =EC33 -> 0.00 | EJ32: =EJ33 -> 0.00 | EU32: =EU33 -> 0.00 | FF32: =FF33 -> 0.00
A33: из них: по выплатам, связанным с причинением вреда гражданам | AU33: 5100 | BA33: 0.00 | BI33: 0.00 | BR33: 0.00 | BY33: 0.00 | CG33: 0.00 | CO33: 0.00 | CW33: 0.00 | DE33: 0.00 | DM33: 0.00 | DV33: 0.00 | EC33: 0.00 | EJ33: 0.00 | EU33: 0.00 | FF33: 0.00
A34: Итого | AU34: 9000 | BA34: =BA32+BA30+BA22+BA21+BA20 -> 2427675.04 | BI34: х | BR34: =BR32+BR30+BR22+BR21+BR20 -> 3502122.81 | BY34: =BY32+BY30+BY22+BY21+BY20 -> 2263813.05 | CG34: =CG20+CG21+CG22+CG30+CG32 -> 925380.02 | CO34: =CO32+CO30+CO22+CO21+CO20 -> 1238309.76 | CW34: =CW32+CW30+CW22+CW21+CW20 -> 0.00 | DE34: =DE32+DE30+DE22+DE21+DE20 -> 0.00 | DM34: =DM20+DM21+DM22+DM30+DM32 -> 0.00 | DV34: =DV32+DV30+DV21+DV20 -> 0.00 | EC34: =EC20+EC21+EC22+EC30+EC32 -> 0.00 | EJ34: =EJ32+EJ30+EJ22+EJ21+EJ20 -> 0.00 | EU34: =EU20+EU21+EU22+EU30+EU32 -> 0.00 | FF34: =FF20+FF21+FF22+FF30+FF32 -> 0.00
A36: Руководитель (уполномоченное лицо) Учреждения
AU37: (должность) | CG37: (расшифровка подписи)
A38: Исполнитель | AU38: бухгалтер, Сиразева Д.И. | CG38: 5983322(5110)
AU39: (должность) | CG39: (телефон)
A41: " | F41: " | R41: 20 | X41: г.

Sheet стр.9
B1: Сведения о просроченной кредиторской задолженности
FA2: КОДЫ
BS3: на 1 | BX3: января | CK3: 20 | CN3: 24 | CQ3: г. | EY3: Дата
EY4: по Сводному реестру
EY5: ИНН
A6: Учреждение | AO6: Муниципальное бюджетное общеобразовательное учреждение "Средняя общеобразовательная школа №85 с углубленным изучением отдельных предметов" Ново-Савиновского района г.Казани | EY6: КПП
A7: Орган, осуществляющий функции и полномочия учредителя | EY7: глава по БК
A8: Публично-правовое образование | EY8: по ОКТМО
A9: Периодичность: годовая
A11: Наименование показателя | AO11: Код строки | AU11: Объем просроченной кредиторской задолженности на начало года | BK11: Предельно допустимые значения просроченной кредиторской задолженности 3 | CG11: Объем просроченной кредиторской задолженности на конец отчетного периода | ED11: Изменение кредиторской задолженности 6 | ER11: Причина образования | FA11: Меры, принимаемые по погашению просроченной кредиторской задолженности
AU12: всего | AZ12: из нее по исполнительным листам | BK12: значение | CB12: срок, дней | CG12: всего | CL12: из нее по исполнительным листам | CX12: в том числе по срокам | ED12: сумма, руб. | EJ12: в процентах
BK13: в абсолютных величинах 4 | BT13: в процентах_5 | CX13: менее 30 дней просрочки | DF13: от 30 до 90 дней просрочки | DN13: от 90 до 180 дней просрочки | DV13: более 180 дней просрочки
A14: 1 | AO14: 2 | AU14: 3 | AZ14: 4 | BK14: 5 | BT14: 6 | CB14: 7 | CG14: 8 | CL14: 9 | CX14: 10 | DF14: 11 | DN14: 12 | DV14: 13 | ED14: 14 | EJ14: 15 | ER14: 16 | FA14: 17
A15: По выплате заработной платы | AO15: 1000 | AU15: 0.00 | AZ15: 0.00 | CG15: 0.00 | CL15: 0.00
A16: По выплате стипендий, пособий, пенсий | AO16: 2000 | AU16: 0.00 | AZ16: 0.00 | CG16: 0.00 | CL16: 0.00
A17: По перечислению в бюджет, всего | AO17: 3000 | AU17: 0.00 | AZ17: 0.00 | CG17: 0.00 | CL17: 0.00
A18: в том числе: по перечислению удержанного налога на доходы физических лиц | AO18: 3100 | AU18: 0.00 | AZ18: 0.00 | CG18: 0.00 | CL18: 0.00
A19: по оплате страховых взносов на обязательное социальное страхование | AO19: 3200 | AU19: 0.00 | AZ19: 0.00 | CG19: 0.00 | CL19: 0.00
A20: по оплате налогов, сборов, за исключением страховых взносов на обязательное социальное страхование | AO20: 3300 | AU20: 0.00 | AZ20: 0.00 | CG20: 0.00 | CL20: 0.00
A21: по возврату в бюджет средств субсидий (грантов в форме субсидий) | AO21: 3400 | AU21: 0.00 | AZ21: 0.00 | CG21: 0.00 | CL21: 0.00
A22: из них: в связи с невыполнением государственного (муниципального) задания | AO22: 3410 | AU22: 0.00 | AZ22: 0.00 | CG22: 0.00 | CL22: 0.00
A23: в связи с недостижением результатов предоставления субсидий (грантов в форме субсидий) | AO23: 3420 | AU23: 0.00 | AZ23: 0.00 | CG23: 0.00 | CL23: 0.00
A24: в связи с невыполнением условий соглашений, в том числе по софинансированию расходов | AO24: 3430 | AU24: 0.00 | AZ24: 0.00 | CG24: 0.00 | CL24: 0.00
A25: По оплате товаров, работ, услуг, всего | AO25: 4000 | AU25: 0.00 | AZ25: 0.00 | CG25: 0.00 | CL25: 0.00
A26: из них: по публичным договорам | AO26: 4100 | AU26: 0.00 | AZ26: 0.00 | CG26: 0.00 | CL26: 0.00
A27: По оплате прочих расходов, всего | AO27: 5000 | AU27: 0.00 | AZ27: 0.00 | CG27: 0.00 | CL27: 0.00
A28: из них: по выплатам, связанным с причинением вреда гражданам | AO28: 5100 | AU28: 0.00 | AZ28: 0.00 | CG28: 0.00 | CL28: 0.00
A29: Итого | AO29: 9000 | AU29: 0.00 | AZ29: х | CG29: х | CL29: 0.00
A31: Руководитель (уполномоченное лицо) Учреждения
AO32: (должность) | BT32: (подпись) | CX32: (расшифровка подписи)
A33: Исполнитель | AO33: бухгалтер | BT33: Сиразева Д.И. | CX33: 5983322(5110)
AO34: (должность) | BT34: (фамилия, инициалы) | CX34: (телефон)
A35: " | F35: " | R35: 20 | X35: г.
A37: 3_Указываются предельно допустимые значения, установленные органом, осуществляющим функции и полномочия учредителя.
A38: 4_Заполняется в случае, если значения просроченной кредиторской задолженности установлены органом, осуществляющим функции и полномочия учредителя, в абсолютных значениях (рублях).
A39: 5_Заполняется в случае, если значения просроченной кредиторской задолженности установлены органом, осуществляющим функции и полномочия учредителя, в процентах от общей суммы кредиторской задолженности.
A40: 6_Указывается общая сумма увеличения или уменьшения кредиторской задолженности.

Sheet стр.10
B1: Сведения о задолженности по ущербу, недостачам, хищениям денежных средств и материальных ценностей
EX3: КОДЫ
BS4: на 1 | CK4: 20 | CQ4: г. | EV4: Дата
EV5: по Сводному реестру
EV6: ИНН
A7: Учреждение | EV7: КПП
A8: Орган, осуществляющий функции и полномочия учредителя | EV8: глава по БК
A9: Публично-правовое образование | EV9: по ОКТМО
A10: Периодичность: годовая
A12: Наименование показателя | AF12: Код строки | AM12: Остаток задолженности по возмещению ущерба на начало года | BG12: Выявлено недостач, хищений, нанесения ущерба | CJ12: Возмещено недостач, хищений, нанесения ущерба | DV12: Списано | EQ12: Остаток задолженности по возмещению ущерба на конец отчетного периода
AM13: всего | AT13: из него на взыскании в службе судебных приставов | BG13: всего | BN13: в том числе: | CJ13: всего | CP13: из них взыскано с виновных лиц | DK13: страховыми организациями | DV13: всего | EC13: из них в связи с прекращением взыскания по исполнительным листам | EQ13: всего | EX13: из него на взыскании в службе судебных приставов
BN14: виновные лица установлены | BZ14: виновные лица не установлены | CP14: всего | CW14: из них по решению суда
A15: 1 | AF15: 2 | AM15: 3 | AT15: 4 | BG15: 5 | BN15: 6 | BZ15: 7 | CJ15: 8 | CP15: 9 | CW15: 10 | DK15: 11 | DV15: 12 | EC15: 13 | EQ15: 14 | EX15: 15
A16: Недостача, хищение денежных средств, всего | AF16: 0100
A17: в том числе: в связи с хищением (кражами) | AF17: 0110
A18: из них: возбуждено уголовных дел (находится в следственных органах) | AF18: 0111 | CJ18: х | CW18: х | DK18: х
A19: в связи с выявлением при обработке наличных денег денежных знаков, имеющих признаки подделки | AF19: 0120
A20: в связи с банкротством кредитной организации | AF20: 0130
A21: Ущерб имуществу (за исключением денежных средств) | AF21: 0200
A22: в том числе: в связи с недостачами, включая хищения (кражи) | AF22: 0210
A23: из них: возбуждено уголовных дел (находится в следственных органах) | AF23: 0211
A24: в связи с нарушением правил хранения | AF24: 0220
A25: в связи с нанесением ущерба техническому состоянию объекта | AF25: 0230
A26: В связи с нарушением условий договоров (контрактов) | AF26: 0300
A27: в том числе: в связи с нарушением сроков (начислено пени, штрафов, неустойки) | AF27: 0310
A28: в связи с невыполнением условий о возврате предоплаты (аванса) | AF28: 0320
A29: Итого | AF29: 9000
A31: Руководитель (уполномоченное лицо) Учреждения
AF32: (должность) | BN32: (подпись) | CW32: (расшифровка подписи)
A33: Исполнитель
AF34: (должность) | BN34: (фамилия, инициалы) | CW34: (телефон)
A35: " | F35: " | R35: 20 | X35: г.

Sheet стр.11_13
B1: Сведения о численности сотрудников и оплате труда
FC3: КОДЫ
BS4: на 1 | BX4: января | CK4: 20 | CN4: 24 | CQ4: г. | FA4: Дата
FA5: по Сводному реестру
FA6: ИНН
A7: Учреждение | Z7: Татарско-русская средняя общеобразовательная школа № 85 | FA7: КПП
A8: Орган, осуществляющий функции и полномочия учредителя | FA8: глава по БК
A9: Публично-правовое образование | FA9: по ОКТМО
A10: Периодичность: годовая
A12: Раздел 1. Сведения о численности сотрудников
A14: Группы персонала (категория персонала) | Z14: Код строки | AG14: Штатная численность на начало года | BN14: Средняя численность сотрудников за отчетный период | DF14: По договорам гражданско-правового характера 9 | EA14: Штатная численность на конец отчетного периода
AG15: установлено штатным расписанием | AW15: в том числе: | BN15: всего 7 | BU15: в том числе: | DF15: в том числе: | EA15: установлено штатным расписанием | EU15: в том числе:
AG16: всего | AM16: из нее по основным видам деятельности | AW16: замещено | BE16: вакантных должностей | BU16: по основному месту работы | CM16: по внутреннему совмести-тельству (по совмещению должностей)8 | CW16: по внешнему совмести-тельству | DF16: сотрудники учреждения 10 | DP16: физические лица, не являющиеся сотрудниками учреждения 11 | EA16: всего | EH16: из нее по основным видам деятельности | EU16: замещено | FC16: вакантных должностей
BU17: всего | CB17: из нее по основным видам деятельности
A18: 1 | Z18: 2 | AG18: 3 | AM18: 4 | AW18: 5 | BE18: 6 | BN18: 7 | BU18: 8 | CB18: 9 | CM18: 10 | CW18: 11 | DF18: 12 | DP18: 13 | EA18: 14 | EH18: 15 | EU18: 16 | FC18: 17
A19: Основной персонал, всего 12 | Z19: 1000 | AG19: =AG20+AG22 -> 93.54 | AM19: =AM20+AM22 -> 93.54 | AW19: =AW20+AW22 -> 91.26 | BE19: =BE20+BE22 -> 2.28 | BN19: =BN20+BN22 -> 54 | BU19: =BU20+BU22 -> 53.7 | CB19: =CB20+CB22 -> 53.7 | CM19: =CM20+CM22 -> 11.895 | CW19: =CW20+CW22 -> 0.3 | DF19: =DF20+DF22 -> 0 | DP19: =DP20+DP22 -> 0 | EA19: =EA20+EA22 -> 92.17 | EH19: =EH20+EH22 -> 92.17 | EU19: =EU20+EU22 -> 87.2 | FC19: =FC20+FC22 -> 4.97
A20: из них:13 | Z20: 1100 | AG20: =AW20+BE20 -> 93.54 | AM20: =AG20 -> 93.54 | AW20: 91.26 | BE20: 2.28 | BN20: =BU20+CW20 -> 54 | BU20: 53.7 | CB20: =BU20 -> 53.7 | CM20: 11.895 | CW20: 0.3 | EA20: =EU20+FC20 -> 92.17 | EH20: =EA20 -> 92.17 | EU20: 87.2 | FC20: 4.97
A21: педагогический персонал
AG22: =AW22+BE22 -> 0 | EA22: =EU22+FC22 -> 0 | EH22: =EA22 -> 0
A23: Вспомогательный персонал, всего 14 | Z23: 2000 | AG23: =AG24+AG26 -> 41.8 | AM23: =AM24+AM26 -> 41.8 | AW23: =AW24+AW26 -> 33.62 | BE23: =BE24+BE26 -> 8.18 | BN23: =BN24+BN26 -> 22.9 | BU23: =BU24+BU26 -> 22.9 | CB23: =CB24+CB26 -> 22.9 | CM23: =CM24+CM26 -> 4.75 | CW23: =CW24+CW26 -> 0 | DF23: =DF24+DF26 -> 0 | DP23: =DP24+DP26 -> 0 | EA23: =EA24+EA26 -> 41.8 | EH23: =EH24+EH26 -> 41.8 | EU23: =EU24+EU26 -> 36.3 | FC23: =FC24+FC26 -> 5.5
A24: из них:13 | Z24: 2100 | AG24: =AW24+BE24 -> 6 | AM24: =AG24 -> 6 | AW24: 4.5 | BE24: 1.5 | BN24: =BU24+CW24 -> 0 | CB24: =BU24 -> 0 | CM24: 2 | EA24: =EU24+FC24 -> 6 | EH24: =EA24 -> 6 | EU24: 4 | FC24: 2
A25: учебно-вспомагательный персонал
A26: обслуживающий персонал | Z26: 2200 | AG26: =AW26+BE26 -> 35.8 | AM26: =AG26 -> 35.8 | AW26: 29.12 | BE26: 6.68 | BN26: =BU26+CW26 -> 22.9 | BU26: 22.9 | CB26: =BU26 -> 22.9 | CM26: 2.75 | EA26: =EU26+FC26 -> 35.8 | EH26: =EA26 -> 35.8 | EU26: 32.3 | FC26: 3.5
A27: Административно-управленческий персонал, всего 15 | Z27: 3000 | AG27: =AG28+AG30 -> 5.5 | AM27: =AM28+AM30 -> 5.5 | AW27: =AW28+AW30 -> 5.5 | BE27: =BE28+BE30 -> 0 | BN27: =BN28+BN30 -> 4.5 | BU27: =BU28+BU30 -> 4.5 | CB27: =CB28+CB30 -> 4.5 | CM27: =CM28+CM30 -> 2.5 | CW27: =CW28+CW30 -> 0 | DF27: =DF28+DF30 -> 0 | DP27: =DP28+DP30 -> 0 | EA27: =EA28+EA30 -> 5.5 | EH27: =EH28+EH30 -> 5.5 | EU27: =EU28+EU30 -> 5 | FC27: =FC28+FC30 -> 0.5
A28: из них:13 | Z28: 3100 | AG28: =AW28+BE28 -> 1 | AM28: =AG28 -> 1 | AW28: 1 | BE28: 0 | BN28: =BU28+CW28 -> 1 | BU28: 1 | CB28: =BU28 -> 1 | EA28: =EU28+FC28 -> 1 | EH28: =EA28 -> 1 | EU28: 1 | FC28: 0
A29: руководитель
A30: заместители руководителя | Z30: 3200 | AG30: =AW30+BE30 -> 4.5 | AM30: =AG30 -> 4.5 | AW30: 4.5 | BE30: 0 | BN30: =BU30+CW30 -> 3.5 | BU30: 3.5 | CB30: =BU30 -> 3.5 | CM30: 2.5 | EA30: =EU30+FC30 -> 4.5 | EH30: =EA30 -> 4.5 | EU30: 4 | FC30: 0.5
A31: Итого | Z31: 9000 | AG31: =AG27+AG23+AG19 -> 140.84 | AM31: =AM27+AM23+AM19 -> 140.84 | AW31: =AW27+AW23+AW19 -> 130.38 | BE31: =BE27+BE23+BE19 -> 10.46 | BN31: =BN19+BN23+BN27 -> 81.4 | BU31: =BU27+BU23+BU19 -> 81.1 | CB31: =CB19+CB23+CB27 -> 81.1 | CM31: =CM19+CM23+CM27 -> 19.145 | CW31: =CW19+CW23+CW27 -> 0.3 | DF31: =DF27+DF23+DF19 -> 0 | DP31: =DP27+DP23+DP19 -> 0 | EA31: =EA19+EA23+EA27 -> 139.47 | EH31: =EH27+EH23+EH19 -> 139.47 | EU31: =EU27+EU23+EU19 -> 128.5 | FC31: =FC27+FC23+FC19 -> 10.97
A34: Учебно-вспомагательный персонал - заб.библиотекой, зав.столовой, лаборант, секретарь, инженера, млад.воспит, мед.сестры, завхоз , делопроизводитель, костюмеры, настройщики, мастера и др.
B35: Обслуживающий персонал - повара, подс.рабочие, сторожа, дворники, гардеробщики, прачки, кастелянши, кладовщики, уборщики и др.рабочие должности
A36: 7_При расчете показателя не учитывается численность сотрудников учреждения, работающих по внутреннему совместительству (по совмещению должностей).
A37: 8_Указывается численность сотрудников учреждения, работающих по внутреннему совместительству (по совмещению должностей). При расчете общей численности сотрудников учреждения показатель не учитывается.
A38: 9_Указывается численность физических лиц, привлекаемых к оказанию услуг, выполнению работ без заключения трудового договора (на основании договоров гражданско-правового характера). Детализация численности по группам персонала указывается в соответствии с предметом договора, в зависимости от характера работ, для выполнения которых привлекается сотрудник.
A39: 10_Указывается численность физических лиц, привлекаемых к оказанию услуг, выполнению работ без заключения трудового договора (на основании договоров гражданско-правового характера), являющихся сотрудниками учреждения.
A40: 11_Указывается численность физических лиц, привлекаемых к оказанию услуг, выполнению работ без заключения трудового договора (на основании договоров гражданско-правового характера), не являющихся сотрудниками учреждения.
A41: 12_Указывается численность работников учреждения, непосредственно оказывающих услуги (выполняющих работы), направленные на достижение определенных уставом учреждения целей деятельности этого учреждения.
A42: 13_Детализация показателей по группе (категории) персонала устанавливается порядком органа, осуществляющего функции и полномочия учредителя.
A43: 14_Указывается численность работников учреждения, создающих условия для оказания услуг (выполнения работ), направленных на достижение определенных уставом учреждения целей деятельности этого учреждения, включая обслуживание зданий и оборудования.
A44: 15_Указывается численность работников учреждения, занятых управлением (организацией) оказания услуг (выполнения работ), а также работников учреждения, выполняющих административные функции, необходимые для обеспечения деятельности учреждения.
B46: Раздел 2. Сведения об оплате труда
A48: Группы персонала | Z48: Код строки | AF48: Фонд начисленной оплаты труда сотрудников за отчетный период, руб. | CF48: Начислено по договорам гражданско-правового характера, руб.16 | CZ48: Аналитическое распределение оплаты труда сотрудников по источникам финансового обеспечения, руб.17
AF49: всего | AL49: в том числе: | CF49: в том числе: | CZ49: в том числе:
AL50: по основному месту работы | BH50: по внутреннему совместительству (совмещению должностей) | BT50: по внешнему совместительству | CF50: сотрудникам учреждения | CP50: физическим лицам, не являющимся сотрудниками учреждения | CZ50: по основному месту работы
AL51: всего | AR51: в том числе на условиях: | CZ51: за счет средств субсидии на выполнение государственного (муниципального) задания | DM51: за счет средств субсидии на иные цели молодые специалисты, ГИА (источник ГИА) | DV51: за счет средств гранта в форме субсидии | ET51: ОМС 18 | FA51: за счет средств от приносящей доход деятельности 19
AR52: полного рабочего времени | AZ52: неполного рабочего времени | DV52: в том числе:
DV53: из федерального бюджета Классное руководство (5000 руб.) | EF53: из бюджетов субъектов Российской Федерации и местных бюджетов Гранты
A54: 1 | Z54: 2 | AF54: 3 | AL54: 4 | AR54: 5 | AZ54: 6 | BH54: 7 | BT54: 8 | CF54: 9 | CP54: 10 | CZ54: 11 | DM54: 12 | DV54: 13 | EF54: 14 | ET54: 15 | FA54: 16
A55: Основной персонал, всего 20 | Z55: 1000 | AF55: =AF56+AF58 -> 40140700 | AL55: =AL56+AL58 -> 36302200 | AR55: =AR56+AR58 -> 36302200 | AZ55: =AZ56+AZ58 -> 0 | BH55: =BH56+BH58 -> 3767300 | BT55: =BT56+BT58 -> 71200 | CF55: =CF56+CF58 -> 0 | CP55: =CP56+CP58 -> 0 | CZ55: =CZ56 -> 30067871.4 | DM55: =DM56 -> 126323.31 | DV55: =DV56 -> 2223605.29 | EF55: =EF56+EF58 -> 0 | ET55: =ET56+ET58 -> 0 | FA55: =FA56 -> 3884400
A56: из них:13 | Z56: 1100 | AF56: =AL56+BH56+BT56 -> 40140700 | AL56: =AR56+AZ56 -> 36302200 | AR56: =CZ56+DM56+DV56+EF56+ET56+FA56 -> 36302200 | BH56: =AD86+AQ86+AY86+BL86+CC86+CJ86 -> 3767300 | BT56: =CU86+DH86+DP86+EC86+ET86+FA86 -> 71200 | CF56: =AD106+AQ106+AY106+BL106+CC106+CJ106 -> 0 | CP56: =CU106+DH106+DP106+EC106+ET106+FA106 -> 0 | CZ56: 30067871.4 | DM56: 126323.31 | DV56: 2223605.29 | FA56: 3884400
A57: педагогический персонал | AL57: 0
A59: Вспомогательный персонал, всего 21 | Z59: 2000 | AF59: =AF60+AF62 -> 8771400 | AL59: =AL60+AL62 -> 7913600 | AR59: =AR60+AR62 -> 7913600 | AZ59: =AZ60+AZ62 -> 0 | BH59: =BH60+BH62 -> 857800 | BT59: =BT60+BT62 -> 0 | CF59: =CF60+CF62 -> 0 | CP59: =CP60+CP62 -> 0 | CZ59: =CZ60+CZ62 -> 7643100 | DM59: =DM60+DM62 -> 0 | DV59: =DV60+DV62 -> 0 | EF59: =EF60+EF62 -> 0 | ET59: =ET60+ET62 -> 0 | FA59: =FA60+FA62 -> 270500
A60: из них:13 | Z60: 2100 | AF60: =AL60+BH60+BT60 -> 720976 | AL60: =AR60+AZ60 -> 720976 | AR60: =CZ60+DM60+DV60+EF60+ET60+FA60 -> 720976 | BH60: =AD90+AQ90+AY90+BL90+CC90+CJ90 -> 0 | BT60: =CU90+DH90+DP90+EC90+ET90+FA90 -> 0 | CF60: =AD110+AQ110+AY110+BL110+CC110+CJ110 -> 0 | CP60: =CU110+DH110+DP110+EC110+ET110+FA110 -> 0 | CZ60: 720976
A61: учебно-вспомагательный персонал | AL61: 0
A62: обслуживающий персонал | Z62: 2200 | AF62: =AL62+BH62+BT62 -> 8050424 | AL62: =AR62+AZ62 -> 7192624 | AR62: =CZ62+DM62+DV62+EF62+ET62+FA62 -> 7192624 | BH62: =AD92+AQ92+AY92+BL92+CC92+CJ92 -> 857800 | BT62: =CU92+DH92+DP92+EC92+ET92+FA92 -> 0 | CF62: =AD112+AQ112+AY112+BL112+CC112+CJ112 -> 0 | CP62: =CU112+DH112+DP112+EC112+ET112+FA112 -> 0 | CZ62: 6922124 | FA62: 270500
A63: Административно-управленческий персонал, всего 22 | Z63: 3000 | AF63: =AF64+AF66 -> 3848400 | AL63: =AL64+AL66 -> 2766200 | AR63: =AR64+AR66 -> 2766200 | AZ63: =AZ64+AZ66 -> 0 | BH63: =BH64+BH66 -> 1082200 | BT63: =BT64+BT66 -> 0 | CF63: =CF64+CF66 -> 0 | CP63: =CP64+CP66 -> 0 | CZ63: =CZ64+CZ66 -> 2322000 | DM63: =DM64+DM66 -> 0 | DV63: =DV64+DV66 -> 0 | EF63: =EF64+EF66 -> 0 | ET63: =ET64+ET66 -> 0 | FA63: =FA64+FA66 -> 444200
A64: из них:13 | Z64: 3100 | AF64: =AL64+BH64+BT64 -> 1240100 | AL64: =AR64+AZ64 -> 1064900 | AR64: =CZ64+DM64+DV64+EF64+ET64+FA64 -> 1064900 | BH64: =AD94+AQ94+AY94+BL94+CC94+CJ94 -> 175200 | BT64: =CU94+DH94+DP94+EC94+ET94+FA94 -> 0 | CF64: =AD114+AQ114+AY114+BL114+CC114+CJ114 -> 0 | CP64: =CU114+DH114+DP114+EC114+ET114+FA114 -> 0 | CZ64: 620700 | FA64: 444200
A65: руководитель | AL65: 0
A66: заместители руководителя | Z66: 3200 | AF66: =AL66+BH66+BT66 -> 2608300 | AL66: 1701300 | AR66: =CZ66+DM66+DV66+EF66+ET66+FA66 -> 1701300 | BH66: =AD96+AQ96+AY96+BL96+CC96+CJ96 -> 907000 | BT66: =CU96+DH96+DP96+EC96+ET96+FA96 -> 0 | CF66: =AD116+AQ116+AY116+BL116+CC116+CJ116 -> 0 | CP66: =CU116+DH116+DP116+EC116+ET116+FA116 -> 0 | CZ66: 1701300
A67: Итого | Z67: 9000 | AF67: =AF55+AF59+AF63 -> 52760500 | AL67: =AL63+AL59+AL55 -> 46982000 | AR67: =AR63+AR59+AR55 -> 46982000 | AZ67: =AZ63+AZ59+AZ55 -> 0 | BH67: =BH63+BH59+BH55 -> 5707300 | BT67: =BT63+BT59+BT55 -> 71200 | CF67: =CF63+CF59+CF55 -> 0 | CP67: =CP63+CP59+CP55 -> 0 | CZ67: =CZ55+CZ59+CZ63 -> 40032971.4 | DM67: =DM55+DM59+DM63 -> 126323.31 | DV67: =DV55+DV59+DV63 -> 2223605.29 | EF67: =EF55+EF59+EF63 -> 0 | ET67: =ET63+ET59+ET55 -> 0 | FA67: =FA63+FA59+FA55 -> 4599100
A70: 16_Указывается сумма, начисленная по договорам гражданско-правового характера, заключенным с лицами, привлекаемыми для оказания услуг (выполнения работ). Детализация начисленного вознаграждения по группам персонала указывается в соответствии с предметом договора, в зависимости от характера работ, для выполнения которых привлекается сотрудник.
A71: 17_Показатели аналитического распределения оплаты труда сотрудников по источникам финансового обеспечения формируются в случае, если требование о детализации установлено органом, осуществляющим функции и полномочия учредителя.
A72: 18_Указывается сумма начисленной оплаты труда работникам учреждения, оказывающим услуги (выполняющим работы) в рамках программ обязательного медицинского страхования.
A73: 19_Указывается сумма начисленной оплаты труда работникам учреждения, оказывающим услуги (выполняющим работы) в рамках осуществления приносящей доход деятельности.
A74: 20_Указывается сумма начисленной оплаты труда работникам учреждения, непосредственно оказывающим услуги (выполняющим работы), направленные на достижение определенных уставом учреждения целей деятельности этого учреждения.
A75: 21_Указывается сумма начисленной оплаты труда работникам учреждения, создающим условия для оказания услуг (выполнения работ), направленных на достижение определенных уставом учреждения целей деятельности этого учреждения, включая обслуживание зданий и оборудования.
A76: 22_Указывается сумма начисленной оплаты труда работникам учреждения, занятым управлением (организацией) оказания услуг (выполнения работ), а также работникам учреждения, выполняющим административные функции, необходимые для обеспечения деятельности учреждения.
A78: Группы персонала | Y78: Код строки | AD78: Аналитическое распределение оплаты труда сотрудников по источникам финансового обеспечения, руб.17
AD79: в том числе:
AD80: по внутреннему совместительству (совмещению должностей) | CU80: по внешнему совместительству
AD81: за счет средств субсидии на выполнение государственного (муниципального) задания | AQ81: за счет средств субсидии на иные цели | AY81: за счет средств гранта в форме субсидии | CC81: ОМС | CJ81: за счет средств от приносящей доход деятельности | CU81: за счет средств субсидии на выполнение государственного (муниципального) задания | DH81: за счет средств субсидии на иные цели | DP81: за счет средств гранта в форме субсидии | ET81: ОМС | FA81: за счет средств от приносящей доход деятельности
AY82: в том числе: | DP82: в том числе:
AY83: из федерального бюджета | BL83: из бюджетов субъектов Российской Федерации и местных бюджетов | DP83: из федерального бюджета | EC83: из бюджетов субъектов Российской Федерации и местных бюджетов
A84: 1 | Y84: 2 | AD84: 17 | AQ84: 18 | AY84: 19 | BL84: 20 | CC84: 21 | CJ84: 22 | CU84: 23 | DH84: 24 | DP84: 25 | EC84: 26 | ET84: 27 | FA84: 28
A85: Основной персонал, всего | Y85: 1000 | AD85: =AD86+AD88 -> 3767300 | AQ85: =AQ86+AQ88 -> 0 | AY85: =AY86+AY88 -> 0 | BL85: =BL86+BL88 -> 0 | CC85: =CC86+CC88 -> 0 | CJ85: =CJ86+CJ88 -> 0 | CU85: =CU86+CU88 -> 71200 | DH85: =DH86+DH88 -> 0 | DP85: =DP86+DP88 -> 0 | EC85: =EC86+EC88 -> 0 | ET85: =ET86+ET88 -> 0 | FA85: =FA86+FA88 -> 0
A86: из них:13 | Y86: 1100 | AD86: 3767300 | CU86: 71200 | FA86: 0
A87: педагогический персонал
A89: Вспомогательный персонал, всего | Y89: 2000 | AD89: =AD90++AD92 -> 857800 | AQ89: =AQ90+AQ92 -> 0 | AY89: =AY90+AY92 -> 0 | BL89: =BL90+BL92 -> 0 | CC89: =CC90+CC92 -> 0 | CJ89: =CJ90+CJ92 -> 0 | CU89: =CU90++CU92 -> 0 | DH89: =DH90+DH92 -> 0 | DP89: =DP90+DP92 -> 0 | EC89: =EC90+EC92 -> 0 | ET89: =ET90+ET92 -> 0 | FA89: =FA90+FA92 -> 0
A90: из них:13 | Y90: 2100 | CU90: 0 | FA90: 0
A91: учебно-вспомагательный персонал
A92: обслуживающий персонал | Y92: 2200 | AD92: 857800 | CU92: 0 | FA92: 0
A93: Административно-управленческий персонал, всего | Y93: 3000 | AD93: =AD94+AD96 -> 1082200 | AQ93: =AQ94+AQ96 -> 0 | AY93: =AY94+AY96 -> 0 | BL93: =BL94+BL96 -> 0 | CC93: =CC94+CC96 -> 0 | CJ93: =CJ94+CJ96 -> 0 | CU93: =CU94+CU96 -> 0 | DH93: =DH94+DH96 -> 0 | DP93: =DP94+DP96 -> 0 | EC93: =EC94+EC96 -> 0 | ET93: =ET94+ET96 -> 0 | FA93: =FA94+FA96 -> 0
A94: из них:13 | Y94: 3100 | AD94: 175200 | CU94: 0 | FA94: 0
A95: руководитель
A96: заместители руководителя | Y96: 3200 | AD96: 907000 | CU96: 0 | FA96: 0
A97: Итого | Y97: 9000 | AD97: =AD85+AD89+AD93 -> 5707300 | AQ97: =AQ85+AQ89+AQ93 -> 0 | AY97: =AY85+AY89+AY93 -> 0 | BL97: =BL93+BL89+BL85 -> 0 | CC97: =CC93+CC89+CC85 -> 0 | CJ97: =CJ93+CJ89+CJ85 -> 0 | CU97: =CU85+CU89+CU93 -> 71200 | DH97: =DH85+DH89+DH93 -> 0 | DP97: =DP85+DP89+DP93 -> 0 | EC97: =EC93+EC89+EC85 -> 0 | ET97: =ET93+ET89+ET85 -> 0 | FA97: =FA93+FA89+FA85 -> 0
A99: Группы персонала | Y99: Код строки | AD99: Аналитическое распределение оплаты труда сотрудников по источникам финансового обеспечения, руб.17
AD100: в том числе:
AD101: по договорам гражданско-правового характера с сотрудниками учреждения | CU101: по договорам гражданско-правового характера с физическими лицами, не являющимися сотрудниками учреждения
AD102: за счет средств субсидии на выполнение государственного (муниципального) задания | AQ102: за счет средств субсидии на иные цели | AY102: за счет средств гранта в форме субсидии, в том числе: | CC102: ОМС | CJ102: за счет средств от приносящей доход деятельности | CU102: за счет средств субсидии на выполнение государственного (муниципального) задания | DH102: за счет средств субсидии на иные цели | DP102: за счет средств гранта в форме субсидии, в том числе: | ET102: ОМС | FA102: за счет средств от приносящей доход деятельности
AY103: из федерального бюджета | BL103: из бюджетов субъектов Российской Федерации и местных бюджетов | DP103: из федерального бюджета | EC103: из бюджетов субъектов Российской Федерации и местных бюджетов
A104: 1 | Y104: 2 | AD104: 29 | AQ104: 30 | AY104: 31 | BL104: 32 | CC104: 33 | CJ104: 34 | CU104: 35 | DH104: 36 | DP104: 37 | EC104: 38 | ET104: 39 | FA104: 40
A105: Основной персонал, всего | Y105: 1000 | AD105: =AD106+AD108 -> 0 | AQ105: =AQ106+AQ108 -> 0 | AY105: =AY106+AY108 -> 0 | BL105: =BL106+BL108 -> 0 | CC105: =CC106+CC108 -> 0 | CJ105: =CJ106+CJ108 -> 0 | CU105: =CU106+CU108 -> 0 | DH105: =DH106+DH108 -> 0 | DP105: =DP106+DP108 -> 0 | EC105: =EC106+EC108 -> 0 | ET105: =ET106+ET108 -> 0 | FA105: =FA106+FA108 -> 0
A106: из них:13 | Y106: 1100 | AD106: 0
A107: педагогический персонал
A109: Вспомогательный персонал, всего | Y109: 2000 | AD109: =AD110++AD112 -> 0 | AQ109: =AQ110+AQ112 -> 0 | AY109: =AY110+AY112 -> 0 | BL109: =BL110+BL112 -> 0 | CC109: =CC110+CC112 -> 0 | CJ109: =CJ110+CJ112 -> 0 | CU109: =CU110++CU112 -> 0 | DH109: =DH110+DH112 -> 0 | DP109: =DP110+DP112 -> 0 | EC109: =EC110+EC112 -> 0 | ET109: =ET110+ET112 -> 0 | FA109: =FA110+FA112 -> 0
A110: из них:13 | Y110: 2100 | AD110: 0
A111: учебно-вспомагательный персонал
A112: обслуживающий персонал | Y112: 2200 | AD112: 0
A113: Административно-управленческий персонал, всего | Y113: 3000 | AD113: =AD114+AD116 -> 0 | AQ113: =AQ114+AQ116 -> 0 | AY113: =AY114+AY116 -> 0 | BL113: =BL114+BL116 -> 0 | CC113: =CC114+CC116 -> 0 | CJ113: =CJ114+CJ116 -> 0 | CU113: =CU114+CU116 -> 0 | DH113: =DH114+DH116 -> 0 | DP113: =DP114+DP116 -> 0 | EC113: =EC114+EC116 -> 0 | ET113: =ET114+ET116 -> 0 | FA113: =FA114+FA116 -> 0
A114: из них:13 | Y114: 3100 | AD114: 0
A115: руководитель
A116: заместители руководителя | Y116: 3200 | AD116: 0
A117: Итого | Y117: 9000 | AD117: =AD105+AD109+AD113 -> 0 | AQ117: =AQ105+AQ109+AQ113 -> 0 | AY117: =AY105+AY109+AY113 -> 0 | BL117: =BL113+BL109+BL105 -> 0 | CC117: =CC113+CC109+CC105 -> 0 | CJ117: =CJ113+CJ109+CJ105 -> 0 | CU117: =CU105+CU109+CU113 -> 0 | DH117: =DH105+DH109+DH113 -> 0 | DP117: =DP105+DP109+DP113 -> 0 | EC117: =EC113+EC109+EC105 -> 0 | ET117: =ET113+ET109+ET105 -> 0 | FA117: =FA113+FA109+FA105 -> 0
A119: Руководитель (уполномоченное лицо) Учреждения
AD120: (должность) | CC120: (подпись) | DP120: (расшифровка подписи)
A121: Исполнитель | AD121: Ведущий бухгалтер | CC121: Фаткуллина Л.Г. | DP121: 598-33-22(3118)
AD122: (должность) | CC122: (фамилия, инициалы) | DP122: (телефон)
A124: " | F124: " | R124: 20 | X124: г.

Sheet стр.14
B1: Сведения о счетах учреждения, открытых в кредитных организациях
EQ3: КОДЫ
BS4: на 1 | CK4: 20 | CQ4: г. | EO4: Дата
EO5: по Сводному реестру
EO6: ИНН
A7: Учреждение | EO7: КПП
A8: Орган, осуществляющий функции и полномочия учредителя | EO8: глава по БК
A9: Публично-правовое образование | EO9: по ОКТМО
A10: Периодичность: годовая
A13: Номер счета в кредитной организации | AV13: Вид счета 23 | BT13: Реквизиты акта, в соответствии с которым открыт счет | DV13: Остаток средств на счете на начало года 24 | EQ13: Остаток средств на счете на конец отчетного периода 24
BT14: вид акта | CM14: дата | DE14: номер
A15: 1 | AV15: 2 | BT15: 3 | CM15: 4 | DE15: 5 | DV15: 6 | EQ15: 7
A16: Счета в кредитных организациях в валюте Российской Федерации | AV16: х | BT16: х | CM16: х | DE16: х | DV16: х | EQ16: х
A20: Всего
A21: Счета в кредитных организациях в иностранной валюте | AV21: х | BT21: х | CM21: х | DE21: х | DV21: х | EQ21: х
A25: Всего
A26: Итого | AV26: х | BT26: х | CM26: х | DE26: х
A28: Руководитель (уполномоченное лицо) Учреждения
AB29: (должность) | BT29: (подпись) | DE29: (расшифровка подписи)
A30: Исполнитель
AB31: (должность) | BT31: (фамилия, инициалы) | DE31: (телефон)
A33: " | F33: " | R33: 20 | X33: г.
A36: 23_Указывается вид банковского счета, открытого в кредитной организации (например, номинальный счет, счет эскроу, публичный депозитный счет).
A37: 24_Показатели счетов в иностранной валюте указываются в рублевом эквиваленте.

Sheet стр.15_16
FK1: (в ред. Приказов Минфина России от 08.11.2022 № 159н, от 31.01.2023 № 10н)
A3: Сведения о недвижимом имуществе, за исключением земельных участков, закрепленном на праве оперативного управления
EY5: КОДЫ
BS6: на 1 | BX6: января | CK6: 20 | CN6: 24 | CQ6: г. | EW6: Дата
EW7: по Сводному реестру
EW8: ИНН | EY8: 1657019296
A9: Учреждение | AF9: Муниципальное бюджетное общеобразовательное учреждении "Средняя школа №85 с углубленным изучением отдельных предметов" Ново-Савиновского района г. Казани | EW9: КПП | EY9: 165701001
A10: Орган, осуществляющий функции и полномочия учредителя | EW10: глава по БК
A11: Публично-правовое образование | EW11: по ОКТМО
A12: Периодичность: годовая
A14: Наименование объекта | X14: Адрес | AE14: Кадастровый номер | AN14: Код по ОКТМО | AU14: Уникаль- ный код объекта 24.1 | BC14: Год постройки | BJ14: Единица измерения | BZ14: Код строки | CF14: Используется учреждением | DW14: Передано во временное пользование сторонним организациям (индивидуальным предпринимателям)
BJ15: наименование | BT15: код по ОКЕИ | CF15: всего | CN15: в том числе: | DW15: всего | ED15: в том числе:
CN16: для осуществления основной деятельности | DN16: для иных целей | ED16: на основании договоров аренды | EM16: на основании договоров безвозмездного пользования | EY16: без оформления права пользования (с почасовой оплатой)
CN17: в рамках государственного (муниципального) задания | DA17: за плату сверх государственного (муниципального) задания
A18: 1 | X18: 2 | AE18: 3 | AN18: 4 | AU18: 4.1 | BC18: 5 | BJ18: 6 | BT18: 7 | BZ18: 8 | CF18: 9 | CN18: 10 | DA18: 11 | DN18: 12 | DW18: 13 | ED18: 14 | EM18: 15 | EY18: 16
A19: Площадные объекты 25, всего | X19: х | AE19: х | AN19: х | BC19: х | BJ19: х | BT19: х | BZ19: 1000
A20: в том числе: | X20: Ямашева 100а | AE20: 16:50:110604:4 | AN20: 9701000 | BC20: 1983 | BJ20: кв.м | BT20: 055 | BZ20: 1001 | CF20: 6878.2 | CN20: 6878.2
A21: Здание
A22: Теплица | Y22: Ямашева 100а | AG22: 16:50:110604:4 | AO22: 9270100 | BD22: 2008 | BK22: кв.м | BU22: 055 | CG22: 236 | CP22: 236
A23: Линейные объекты 26, всего | X23: х | AE23: х | AN23: х | BC23: х | BJ23: х | BT23: х | BZ23: 2000
A24: в том числе: | BZ24: 2001
A27: Резервуары, емкости, иные аналогичные объекты, всего | X27: х | AE27: х | AN27: х | BC27: х | BJ27: х | BT27: х | BZ27: 3000
A28: в том числе: | BZ28: 3001
A31: Скважины, иные аналогичные объекты, всего | X31: х | AE31: х | AN31: х | BC31: х | BJ31: х | BT31: х | BZ31: 4000
A32: в том числе: | BZ32: 4001
A35: Иные объекты, включая точечные, всего | X35: х | AE35: х | AN35: х | BC35: х | BJ35: х | BT35: х | BZ35: 5000
A36: в том числе: | BZ36: 5001
BT39: Итого | BZ39: 9000 | CF39: 7114.2 | CN39: 7114.2
A41: Наименование объекта | Y41: Код строки | AE41: Не используется | BO41: Фактические расходы на содержание объекта недвижимого имущества (руб. в год)
AE42: всего | AK42: из них: | BO42: всего | BV42: из них:
AK43: проводится капитальный ремонт и/или реконструкция | AW43: в связи с аварийным состоянием | BV43: коммунальные услуги | DB43: услуги по содержанию имущества | EG43: налог на имущество
AW44: требуется ремонт | BF44: ожидает списания | BV44: всего | CC44: из них: | DB44: всего | DH44: из них: | EG44: всего | EM44: из них:
CC45: возмещается пользователями имущества 24.2 | CO45: по неиспользуемому имуществу 24.3 | DH45: возмещается пользователями имущества 24.2 | DT45: по неиспользуемому имуществу 24.3 | EM45: возмещается пользователями имущества 24.2 | EY45: по неиспользуемому имуществу 24.3
A46: 1 | Y46: 8 | AE46: 17 | AK46: 18 | AW46: 19 | BF46: 20 | BO46: 21 | BV46: 22 | CC46: 23 | CO46: 24 | DB46: 25 | DC46: 24.28571429 | DD46: 24.39285714 | DE46: 24.5 | DF46: 24.60714286 | DG46: 24.71428571 | DH46: 26 | DI46: 24.92857143 | DJ46: 25.03571429 | DK46: 25.14285714 | DL46: 25.25 | DM46: 25.35714286 | DN46: 25.46428571 | DO46: 25.57142857 | DP46: 25.67857143 | DQ46: 25.78571429 | DR46: 25.89285714 | DS46: 26 | DT46: 27 | EG46: 28 | EM46: 29 | EY46: 30
A47: Площадные объекты 25, всего | Y47: 1000 | BO47: =BV47+DB47+EG47 -> 7027237.48 | BV47: 496548.77 | DB47: 5288027.53 | EG47: 1242661.18 | EM47: 1242661.18
A48: в том числе: | Y48: 1001 | BO48: 7027237.48 | BV48: 496548.77 | DB48: 5288027.53
A51: Линейные объекты 26, всего | Y51: 2000
A52: в том числе: | Y52: 2001
A55: Резервуары, емкости, иные аналогичные объекты, всего | Y55: 3000
A56: в том числе: | Y56: 3001
A59: Скважины, иные аналогичные объекты, всего | Y59: 4000
A60: в том числе: | Y60: 4001
A63: Иные объекты, включая точечные, всего | Y63: 5000
A64: в том числе: | Y64: 5001
A67: Итого | Y67: 9000 | BO67: =BV67+DB67+EG67 -> 7027237.48 | BV67: 496548.77 | DB67: 5288027.53 | EG67: 1242661.18 | EM67: 124661.18
A69: 24.1_Указывается уникальный код объекта капитального строительства, объекта недвижимого имущества (при наличии).
A70: 24.2_Указываются расходы, возмещенные учреждению пользователями объектов недвижимого имущества, указанных в графе 13.
A71: 24.3_Указываются расходы учреждения на содержание объектов недвижимого имущества, указанных в графе 17.
A72: 25_Указываются здания, строения, сооружения и иные аналогичные объекты.
A73: 26_Указываются линии электропередачи, линии связи (в том числе линейно-кабельные сооружения), трубопроводы, автомобильные дороги, железнодорожные линии и другие подобные сооружения.
A75: Руководитель (уполномоченное лицо) Учреждения
T76: (должность) | AW76: (подпись) | CC76: (расшифровка подписи)
A77: Исполнитель | T77: бухгалтер | AW77: Туктаева А.О. | CC77: 5983322
T78: (должность) | AW78: (фамилия, инициалы) | CC78: (телефон)
A80: " | F80: " | R80: 20 | X80: г.

Sheet стр.17
B1: Сведения о земельных участках, предоставленных на праве постоянного (бессрочного) пользования
EV3: КОДЫ
BS4: на 1 | BX4: января | CK4: 20 | CN4: 24 | CQ4: г. | ET4: Дата
ET5: по Сводному реестру
ET6: ИНН | EV6: 1657019296
A7: Учреждение | Z7: Муниципальное бюджетное общеобразовательное учреждение "Средняя школа №85 с углубленным изучением отдельных предметов" Ново-Савиновского района г. Казани | ET7: КПП | EV7: 165701001
A8: Орган, осуществляющий функции и полномочия учредителя | ET8: глава по БК
A9: Публично-правовое образование | ET9: по ОКТМО
A10: Периодичность: годовая
A12: Наименование показателя | O12: Адрес | T12: Код по ОКТМО | Z12: Кадастро-вый номер | AH12: Единица измерения | AS12: Код строки | AX12: Всего | BC12: Используется учреждением | CM12: Справочно: используется по соглашениям об установлении сервитута | CX12: Не используется учреждением | EL12: Фактические расходы на содержание земельного участка (руб. в год)
AH13: наимено-вание | AN13: код по ОКЕИ | BC13: всего | BH13: в том числе: | CX13: всего | DC13: в том числе: | EL13: всего | EQ13: в том числе:
BH14: для осуществления основной деятельности | CH14: для иных целей | DC14: передано во временное пользование сторонним организациям | EE14: по иным причинам | EQ14: эксплуатационные расходы | FG14: налог на землю
BH15: в рамках государственного (муниципального) задания | BU15: за плату сверх государственного (муниципального) задания | DC15: на основании договоров аренды | DK15: на основании договоров безвозмездного пользования | DV15: без оформления права пользования | EQ15: всего | EV15: из них возмещается пользователями имущества
A16: 1 | O16: 2 | T16: 3 | Z16: 4 | AH16: 5 | AN16: 6 | AS16: 7 | AX16: 8 | BC16: 9 | BH16: 10 | BU16: 11 | CH16: 12 | CM16: 13 | CX16: 14 | DC16: 15 | DK16: 16 | DV16: 17 | EE16: 18 | EL16: 19 | EQ16: 20 | EV16: 21 | FG16: 22
A17: Земельный участок | O17: Ямашева 100а | T17: 92701000 | Z17: 16:50:110604:4 | AH17: кв.м | AN17: 055 | AS17: 104 | AX17: 23840 | BC17: 23840 | BH17: 23840 | EL17: 682476 | EV17: 682476
A20: Итого | AX20: 23840 | BC20: 23840 | BH20: 23840 | EL20: 682476 | EV20: 682476
A22: Руководитель (уполномоченное лицо) Учреждения
O23: (должность) | AH23: (подпись) | BC23: (расшифровка подписи)
A24: Исполнитель | O24: бухгалтер | AH24: Туктаева А.О. | BC24: 5983322
O25: (должность) | AH25: (фамилия, инициалы) | BC25: (телефон)
A27: " | F27: " | R27: 20 | X27: г.

Sheet стр.18_19
B1: Сведения о недвижимом имуществе, используемом по договору аренды
EY3: КОДЫ
BS4: на 1 | BX4: ЯНВАРЯ | CK4: 20 | CN4: 24 | CQ4: г. | EW4: Дата
EW5: по Сводному реестру
EW6: ИНН
A7: Учреждение | EW7: КПП
A8: Орган, осуществляющий функции и полномочия учредителя | EW8: глава по БК
A9: Публично-правовое образование | EW9: по ОКТМО
A10: Периодичность: годовая
A12: Раздел 1. Сведения о недвижимом имуществе, используемом на праве аренды с помесячной оплатой
A14: Наименование объекта | AA14: Адрес | AG14: Единица измерения | AX14: Код строки | BD14: Количество арендуемого имущества | BM14: Арендодатель (ссудодатель) | CJ14: Срок пользования | DB14: Арендная плата | DQ14: Фактические расходы на содержание арендованного имущества (руб./год) | EB14: Направление использования арендованного имущества | EY14: Обоснование заключения договора аренды
AG15: наименование | AR15: код по ОКЕИ | BM15: наименование | BX15: ИНН | CC15: код по КИСЭ | CJ15: начала | CT15: окончания | DB15: за единицу меры (руб./мес.) | DJ15: за объект (руб./год) | EB15: для осуществления основной деятельности 27 | EN15: для осуществления иной деятельности 28
A16: 1 | AA16: 2 | AG16: 3 | AR16: 4 | AX16: 5 | BD16: 6 | BM16: 7 | BX16: 8 | CC16: 9 | CJ16: 10 | CT16: 11 | DB16: 12 | DJ16: 13 | DQ16: 14 | EB16: 15 | EN16: 16 | EY16: 17
A17: Площадные объекты 25, всего | AA17: х | AG17: х | AR17: х | AX17: 1000
A18: в том числе: | AX18: 1001
A21: Линейные объекты 26, всего | AA21: х | AG21: х | AR21: х | AX21: 2000
A22: в том числе: | AX22: 2001
A25: Резервуары, емкости, иные аналогичные объекты, всего | AA25: х | AG25: х | AR25: х | AX25: 3000
A26: в том числе: | AX26: 3001
A29: Скважины, иные аналогичные объекты, всего | AA29: х | AG29: х | AR29: х | AX29: 4000
A30: в том числе: | AX30: 4001
A33: Иные объекты, включая точечные, всего | AA33: х | AG33: х | AR33: х | AX33: 5000
A34: в том числе: | AX34: 5001
A37: Итого | AX37: 9000
A39: Раздел 2. Сведения о недвижимом имуществе, используемом на праве аренды с почасовой оплатой
A41: Наименование объекта | AA41: Адрес | AG41: Единица измерения | AX41: Код строки | BD41: Количество арендуемого имущества | BM41: Арендодатель (ссудодатель) | CJ41: Длительность использования (час) | CT41: Арендная плата | DQ41: Фактические расходы на содержание объекта недвижимого имущества (руб./год) | EB41: Направление использования объекта недвижимого имущества | EY41: Обоснование заключения договора аренды
AG42: наименование | AR42: код по ОКЕИ | BM42: наименование | BX42: ИНН | CC42: код по КИСЭ | CT42: за единицу меры (руб./час) | DB42: за объект (руб./час) | DJ42: всего за год (руб.) | EB42: для осуществления основной деятельности 27 | EN42: для осуществления иной деятельности 28
A43: 1 | AA43: 2 | AG43: 4 | AR43: 5 | AX43: 6 | BD43: 7 | BM43: 8 | BX43: 9 | CC43: 10 | CJ43: 11 | CT43: 12 | DB43: 13 | DJ43: 14 | DQ43: 15 | EB43: 16 | EN43: 17 | EY43: 18
A44: Площадные объекты 25, всего | AA44: х | AG44: х | AR44: х | AX44: 1000
A45: в том числе: | AX45: 1001
A48: Линейные объекты 26, всего | AA48: х | AG48: х | AR48: х | AX48: 2000
A49: в том числе: | AX49: 2001
A52: Резервуары, емкости, иные аналогичные объекты, всего | AA52: х | AG52: х | AR52: х | AX52: 3000
A53: в том числе: | AX53: 3001
A56: Скважины, иные аналогичные объекты, всего | AA56: х | AG56: х | AR56: х | AX56: 4000
A57: в том числе: | AX57: 4001
A60: Иные объекты, включая точечные, всего | AA60: х | AG60: х | AR60: х | AX60: 5000
A61: в том числе: | AX61: 5001
A64: Итого | AX64: 9000
A66: Руководитель (уполномоченное лицо) Учреждения
V67: (должность) | AX67: (подпись) | CC67: (расшифровка подписи)
A68: Исполнитель
V69: (должность) | AX69: (фамилия, инициалы) | CC69: (телефон)
A71: " | F71: " | R71: 20 | X71: г.
A73: 27_Указывается направление использования объекта недвижимого имущества "1" - для осуществления основной деятельности в рамках государственного (муниципального) задания, "2" - для осуществления основной деятельности за плату сверх государственного (муниципального) задания.
A74: 28_Указывается направление использования объекта недвижимого имущества "3" - проведение концертно-зрелищных мероприятий и иных культурно-массовых мероприятий, "4" - проведение спортивных мероприятий, "5" - проведение конференций, семинаров, выставок, переговоров, встреч, совещаний, съездов, конгрессов, "6" - для иных мероприятий.

Sheet стр.20
B1: Сведения о недвижимом имуществе, используемом по договору безвозмездного пользования (договору ссуды)
EV3: КОДЫ
BS4: на 1 | CK4: 20 | CQ4: г. | ET4: Дата
ET5: по Сводному реестру
ET6: ИНН
A7: Учреждение | ET7: КПП
A8: Орган, осуществляющий функции и полномочия учредителя | ET8: глава по БК
A9: Публично-правовое образование | ET9: по ОКТМО
A10: Периодичность: годовая
A12: Наименование объекта | Y12: Адрес | AG12: Единица измерения | BA12: Код строки | BG12: Количество имущества | BQ12: Ссудодатель | CR12: Срок пользования | DI12: Фактические расходы на содержание объекта недвижимого имущества (руб./год) | DX12: Направление использования объекта недвижимого имущества | EV12: Обоснование заключения договора ссуды
AG13: наименование | AR13: код по ОКЕИ | BQ13: наименование | CB13: ИНН | CJ13: код по КИСЭ | CR13: начала | CZ13: окончания | DX13: для осуществления основной деятельности 27 | EJ13: для осуществления иной деятельности 28
A14: 1 | Y14: 2 | AG14: 3 | AR14: 4 | BA14: 5 | BG14: 6 | BQ14: 7 | CB14: 8 | CJ14: 9 | CR14: 10 | CZ14: 11 | DI14: 12 | DX14: 13 | EJ14: 14 | EV14: 15
A15: Площадные объекты 25, всего | BA15: 1000
A16: в том числе: | BA16: 1001
A19: Линейные объекты 26, всего | BA19: 2000
A20: в том числе: | BA20: 2001
A23: Резервуары, емкости, иные аналогичные объекты, всего | BA23: 3000
A24: в том числе: | BA24: 3001
A27: Скважины, иные аналогичные объекты, всего | BA27: 4000
A28: в том числе: | BA28: 4001
A31: Иные объекты, включая точечные, всего | BA31: 5000
A32: в том числе: | BA32: 5001
AR35: Всего: | BA35: 9000
A37: Руководитель (уполномоченное лицо) Учреждения
AG38: (должность) | CB38: (подпись) | DX38: (расшифровка подписи)
A39: Исполнитель
AG40: (должность) | CB40: (фамилия, инициалы) | DX40: (телефон)
A42: " | F42: " | R42: 20 | X42: г.

Sheet стр.21_24
B1: Сведения об особо ценном движимом имуществе (за исключением транспортных средств)
ER3: КОДЫ
BS4: на 1 | BX4: января | CK4: 20 | CN4: 24 | CQ4: г. | EP4: Дата
EP5: по Сводному реестру
EP6: ИНН | ER6: 1657019296
A7: Учреждение | AL7: Муниципальное бюджетное общеобразовательного учреждении"Средняя школа №85 с углубленным изучением отдельных предметов" Ново-Савиновского района г. Казани | EP7: КПП | ER7: 165701001
A8: Орган, осуществляющий функции
A9: и полномочия учредителя | EP9: глава по БК
A10: Публично-правовое образование | EP10: по ОКТМО
A11: Периодичность: годовая
A13: Раздел 1. Сведения о наличии, состоянии и использовании особо ценного движимого имущества
A15: Наименование показателя (группа основных средств) | AL15: Код строки | AR15: Наличие движимого имущества на конец отчетного периода
AR16: всего | BC16: в том числе:
BC17: используется учреждением | BN17: передано в пользование | DD17: не используется
BN18: всего | BY18: в том числе: | DD18: требует ремонта | DX18: физически и морально изношено, ожидает согласования, списания
BY19: в аренду | CJ19: безвозмездно | DX19: всего | ER19: из них требует замены
A20: 1 | AL20: 2 | AR20: 3 | BC20: 4 | BN20: 5 | BY20: 6 | CJ20: 7 | DD20: 8 | DX20: 9 | ER20: 10
A21: Нежилые помещения, здания и сооружения, не отнесенные к недвижимому имуществу | AL21: 1000
A22: в том числе: для основной деятельности | AL22: 1100
A23: из них: для оказания услуг (выполнения работ) в рамках утвержденного государственного (муниципального) задания | AL23: 1110
A25: для иной деятельности | AL25: 1200
A26: Машины и оборудование | AL26: 2000 | AR26: 218 | BC26: 218
A27: в том числе: для основной деятельности | AL27: 2100 | AR27: 218 | BC27: 218
A28: из них: для оказания услуг (выполнения работ) в рамках утвержденного государственного (муниципального) задания | AL28: 2110 | AR28: 207 | BC28: 207
A30: для иной деятельности | AL30: 2200
A31: Хозяйственный и производственный инвентарь, всего | AL31: 3000 | AR31: 298 | BC31: 298
A32: в том числе: для основной деятельности | AL32: 3100 | AR32: 298 | BC32: 298
A33: из них: для оказания услуг (выполнения работ) в рамках утвержденного государственного (муниципального) задания | AL33: 3110 | AR33: 273 | BC33: 273
A35: для иной деятельности | AL35: 3200
A36: Прочие основные средства, всего | AL36: 4000 | AR36: 138 | BC36: 138
A37: в том числе: для основной деятельности | AL37: 4100 | AR37: 138 | BC37: 138
A38: из них: для оказания услуг (выполнения работ) в рамках утвержденного государственного (муниципального) задания | AL38: 4110 | AR38: 132 | BC38: 132
A40: для иной деятельности | AL40: 4200
A41: Итого | AL41: 9000 | AR41: 654 | BC41: 654
A43: Наименование показателя (группа основных средств) | AL43: Код строки | AR43: Фактический срок использования 29
AR44: от 121 месяца и более | BN44: от 85 до 120 месяцев | CJ44: от 61 до 84 месяцев | DD44: от 37 до 60 месяцев | DX44: от 13 до 36 месяцев | ER44: менее 12 месяцев
AR45: количество, ед. | BC45: балансовая стоимость, руб. | BN45: количество, ед. | BY45: балансовая стоимость, руб. | CJ45: количество, ед. | CT45: балансовая стоимость, руб. | DD45: количество, ед. | DN45: балансовая стоимость, руб. | DX45: количество, ед. | EH45: балансовая стоимость, руб. | ER45: количество, ед. | FB45: балансовая стоимость, руб.
A46: 1 | AL46: 2 | AR46: 11 | BC46: 12 | BN46: 13 | BY46: 14 | CJ46: 15 | CT46: 16 | DD46: 17 | DN46: 18 | DX46: 19 | EH46: 20 | ER46: 21 | FB46: 22
A47: Нежилые помещения, здания и сооружения, не отнесенные к недвижимому имуществу | AL47: 1000
A48: в том числе: для основной деятельности | AL48: 1100
A49: из них: для оказания услуг (выполнения работ) в рамках утвержденного государственного (муниципального) задания | AL49: 1110
A51: для иной деятельности | AL51: 1200
A52: Машины и оборудование | AL52: 2000 | AR52: 145 | BC52: 3572794.8 | BN52: 17 | BY52: 1024626.1 | CJ52: 46 | CT52: 1356872 | DD52: 44 | DN52: 1324472 | DX52: 18 | EH52: 266376 | ER52: 1 | FB52: 202470.51
A53: в том числе: для основной деятельности | AL53: 2100 | AR53: 145 | BC53: 3572794.8 | BN53: 17 | BY53: 1024626.1 | CJ53: 46 | CT53: 1356872 | DD53: 44 | DN53: 1324472 | DX53: 18 | EH53: 266376 | ER53: 1 | FB53: 202470.51
A54: из них: для оказания услуг (выполнения работ) в рамках утвержденного государственного (муниципального) задания | AL54: 2110 | AR54: 141 | BC54: 3847238.42 | BN54: 13 | BY54: 743964.3 | CJ54: 0 | CT54: 0 | DD54: 44 | DN54: 1324472 | DX54: 18 | EH54: 266376 | ER54: 0 | FB54: 0
A56: для иной деятельности | AL56: 2200
A57: Хозяйственный и производственный инвентарь, всего | AL57: 3000 | AR57: 196 | BC57: 1939170.68 | BN57: 64 | BY57: 36057142 | CJ57: 13 | CT57: 73459.42 | DD57: 3 | DN57: 2673369.06 | DX57: 8 | EH57: 2790769.06 | ER57: 3 | FB57: 89010
A58: в том числе: для основной деятельности | AL58: 3100 | AR58: 196 | BC58: 1939170.68 | BN58: 64 | BY58: 36057142 | CJ58: 13 | CT58: 73459.42 | DD58: 3 | DN58: 2673369.06 | DX58: 8 | EH58: 2790769.06 | ER58: 3 | FB58: 89010
A59: из них: для оказания услуг (выполнения работ) в рамках утвержденного государственного (муниципального) задания | AL59: 3110 | AR59: 196 | BC59: 1939170.68 | BN59: 64 | BY59: 36057142 | CJ59: 2 | CT59: 22600 | DD59: 3 | DN59: 2673369.06 | DX59: 5 | EH59: 117400 | ER59: 3 | FB59: 89010
A61: для иной деятельности | AL61: 3200
A62: Прочие основные средства, всего | AL62: 4000 | AR62: 47 | BC62: 1317659.42 | BN62: 41 | BY62: 1623731.23 | CJ62: 35 | CT62: 1465637.38 | DD62: 6 | DN62: 14120 | DX62: 8 | EH62: 145072.38 | ER62: 1 | FB62: 1944044.85
A63: в том числе: для основной деятельности | AL63: 4100 | AR63: 47 | BC63: 1317659.42 | BN63: 41 | BY63: 1623731.23 | CJ63: 35 | CT63: 1465637.38 | DD63: 6 | DN63: 14120 | DX63: 8 | EH63: 145072.38 | ER63: 1 | FB63: 1944044.85
A64: из них: для оказания услуг (выполнения работ) в рамках утвержденного государственного (муниципального) задания | AL64: 4110 | AR64: 47 | BC64: 1317659.42 | BN64: 41 | BY64: 1623731.23 | CJ64: 34 | CT64: 1452410.88 | DD64: 0 | DN64: 0 | DX64: 8 | EH64: 145072.38 | ER64: 1 | FB64: 1944044.85
A66: для иной деятельности | AL66: 4200
A67: Итого | AL67: 9000 | AR67: =AR52+AR57+AR62 -> 388 | BC67: =BC52+BC57+BC62 -> 6829624.9 | BN67: 122 | BY67: =BY52+BY57 -> 37081768.1 | CJ67: 94 | CT67: =CT52+CT57+CT62 -> 2895968.8 | DD67: 53 | DN67: =DN52+DN62 -> 1338592 | DX67: 34 | EH67: =EH52+EH57+EH62 -> 3202217.44 | ER67: 5 | FB67: =FB52+FB57+FB62 -> 2235525.36
A70: 29_Срок использования имущества считается начиная с 1-го числа месяца, следующего за месяцем принятия его к бухгалтерскому учету.
A72: Наименование показателя (группа основных средств) | AL72: Код строки | AR72: Остаточная стоимость объектов особо ценного движимого имущества, в том числе с оставшимся сроком полезного использования
AR73: менее 12 месяцев | BC73: от 12 до 24 месяцев | BN73: от 25 до 36 месяцев | BY73: от 37 до 48 месяцев | CJ73: от 49 до 60 месяцев | CT73: от 61 до 72 месяцев | DD73: от 73 до 84 месяцев | DN73: от 85 до 96 месяцев | DX73: от 97 до 108 месяцев | EH73: от 109 до 120 месяцев | ER73: от 121 месяца и более
A74: 1 | AL74: 2 | AR74: 23 | BC74: 24 | BN74: 25 | BY74: 26 | CJ74: 27 | CT74: 28 | DD74: 29 | DN74: 30 | DX74: 31 | EH74: 32 | ER74: 33
A75: Нежилые помещения, здания и сооружения, не отнесенные к недвижимому имуществу | AL75: 1000
A76: в том числе: для основной деятельности | AL76: 1100
A77: из них: для оказания услуг (выполнения работ) в рамках утвержденного государственного (муниципального) задания | AL77: 1110
A79: для иной деятельности | AL79: 1200
A80: Машины и оборудование | AL80: 2000 | AR80: 43868.63 | BC80: 0 | BN80: 0 | BY80: 0 | CJ80: 148147.5 | CT80: 0 | DD80: 47245.78 | DN80: 0 | DX80: 0 | EH80: 0 | ER80: 0
A81: в том числе: для основной деятельности | AL81: 2100 | AR81: 43868.63 | BC81: 0 | BN81: 0 | BY81: 0 | CJ81: 148147.5 | CT81: 0 | DD81: 47245.78 | DN81: 0 | DX81: 0 | EH81: 0 | ER81: 0
A82: из них: для оказания услуг (выполнения работ) в рамках утвержденного государственного (муниципального) задания | AL82: 2110 | AR82: 0 | BC82: 202470.51 | BN82: 0 | BY82: 0 | CJ82: 355554 | CT82: 0 | DD82: 0 | DN82: 66700 | DX82: 0 | EH82: 0 | ER82: 0
A84: для иной деятельности | AL84: 2200
A85: Хозяйственный и производственный инвентарь | AL85: 3000 | AR85: 0 | BC85: 0 | BN85: 1849080.44 | BY85: 0 | CJ85: 0 | CT85: 0 | DD85: 0 | DN85: 0 | DX85: 0 | EH85: 0 | ER85: 0
A86: в том числе: для основной деятельности | AL86: 3100 | AR86: 0 | BC86: 0 | BN86: 1849080.44 | BY86: 0 | CJ86: 0 | CT86: 0 | DD86: 0 | DN86: 0 | DX86: 0 | EH86: 0 | ER86: 0
A87: из них: для оказания услуг (выполнения работ) в рамках утвержденного государственного (муниципального) задания | AL87: 3110 | AR87: 0 | BC87: 0 | BN87: 0 | BY87: 1849080.44 | CJ87: 0 | CT87: 0 | DD87: 0 | DN87: 0 | DX87: 0 | EH87: 0 | ER87: 0
A89: для иной деятельности | AL89: 3200
A90: Прочие основные средства | AL90: 4000 | AR90: 1944044.85 | BC90: 0 | BN90: 0 | BY90: 0 | CJ90: 0 | CT90: 0 | DD90: 0 | DN90: 0 | DX90: 0 | EH90: 0 | ER90: 0
A91: в том числе: для основной деятельности | AL91: 4100 | AR91: 1944044.85 | BC91: 0 | BN91: 0 | BY91: 0 | CJ91: 0 | CT91: 0 | DD91: 0 | DN91: 0 | DX91: 0 | EH91: 0 | ER91: 0
A92: из них: для оказания услуг (выполнения работ) в рамках утвержденного государственного (муниципального) задания | AL92: 4110 | AR92: 1944044.85 | BC92: 0 | BN92: 0 | BY92: 0 | CJ92: 0 | CT92: 0 | DD92: 0 | DN92: 0 | DX92: 0 | EH92: 0 | ER92: 0
A94: для иной деятельности | AL94: 4200
A95: Итого | AL95: 9000 | AR95: =AR80+AR90 -> 1987913.48 | BC95: 202470.51 | BN95: 1849080.44 | BY95: 1849080.44 | CJ95: 148147.5 | CT95: 0 | DD95: 47245.78 | DN95: 66700 | DX95: 0 | EH95: 0 | ER95: 0
B97: Раздел 2. Сведения о расходах на содержание особо ценного движимого имущества
A99: Наименование показателя | AL99: Код строки | AR99: Всего за отчетный период | BF99: Расходы на содержание особо ценного движимого имущества
BF100: в том числе:
BF101: на текущее обслуживание | DK101: капитальный ремонт, включая приобретение запасных частей | DZ101: на уплату налогов | EJ101: заработная плата обслуживающего персонала | EX101: иные расходы
BF102: расходы на периодическое техническое (профилактическое) обслуживание | BU102: расходы на текущий ремонт, включая приобретение запасных частей | CI102: расходы на обязательное страхование | CW102: расходы на добровольное страхование
A103: 1 | AL103: 2 | AR103: 3 | BF103: 4 | BU103: 5 | CI103: 6 | CW103: 7 | DK103: 8 | DZ103: 9 | EJ103: 10 | EX103: 11
A104: Нежилые помещения, здания и сооружения, не отнесенные к недвижимому имуществу | AL104: 1000
A105: в том числе: для основной деятельности | AL105: 1100
A106: из них: для оказания услуг (выполнения работ) в рамках утвержденного государственного (муниципального) задания | AL106: 1110
A108: для иной деятельности | AL108: 1200
A109: Машины и оборудование | AL109: 2000
A110: в том числе: для основной деятельности | AL110: 2100
A111: из них: для оказания услуг (выполнения работ) в рамках утвержденного государственного (муниципального) задания | AL111: 2110
A113: для иной деятельности | AL113: 2200
A114: Хозяйственный и производственный инвентарь | AL114: 3000
A115: в том числе: для основной деятельности | AL115: 3100
A116: из них: для оказания услуг (выполнения работ) в рамках утвержденного государственного (муниципального) задания | AL116: 3110
A118: для иной деятельности | AL118: 3200
A119: Прочие основные средства | AL119: 4000
A120: в том числе: для основной деятельности | AL120: 4100
A121: из них: для оказания услуг (выполнения работ) в рамках утвержденного государственного (муниципального) задания | AL121: 4110
A123: для иной деятельности | AL123: 4200
A124: Итого | AL124: 9000
A126: Руководитель (уполномоченное лицо) Учреждения
AL127: (должность) | BU127: (подпись) | DK127: (расшифровка подписи)
A128: Исполнитель | AL128: бухгалтер | BU128: Туктаева А.О. | DK128: 5983322
AL129: (должность) | BU129: (фамилия, инициалы) | DK129: (телефон)
A131: " | F131: " | R131: 20 | X131: г.

Sheet стр.25_31
B1: Сведения о транспортных средствах
EW3: КОДЫ
BS4: на 1 | BX4: ЯНВАРЯ | CK4: 20 | CN4: 24 | CQ4: г. | EU4: Дата
EU5: по Сводному реестру
EU6: ИНН | EW6: 1657019296
A7: Учреждение | AB7: Муниципальное бюджетное общеобразовательное учреждение "Средняя школа №85 с углубленным изучением отдельных предметов" Ново-Савиновского района г. Казани | EU7: КПП | EW7: 165701001
A8: Орган, осуществляющий функции
A9: и полномочия учредителя | EU9: глава по БК
A10: Публично-правовое образование | EU10: по ОКТМО
A11: Периодичность: годовая
A12: Раздел 1. Сведения об используемых транспортных средствах
A14: Наименование показателя | AK14: Код строки | AQ14: Транспортные средства, ед.
AQ15: всего | BU15: в том числе:
BU16: в оперативном управлении учреждения | DA16: по договорам аренды | EG16: по договорам безвозмездного пользования
AQ17: на отчетную дату | BF17: в среднем за год | BU17: на отчетную дату | CK17: в среднем за год | DA17: на отчетную дату | DQ17: в среднем за год | EG17: на отчетную дату | EW17: в среднем за год
A18: 1 | AK18: 2 | AQ18: 3 | BF18: 4 | BU18: 5 | CK18: 6 | DA18: 7 | DQ18: 8 | EG18: 9 | EW18: 10
A19: Наземные транспортные средства | AK19: 1000 | AQ19: 94760 | BF19: 94760 | BU19: 1 | CK19: 1 | DA19: 0 | DQ19: 0 | EG19: 0 | EW19: 0
A20: автомобили легковые (за исключением автомобилей скорой медицинской помощи), всего | AK20: 1100
A21: в том числе:30 средней стоимостью менее 3 миллионов рублей, с года выпуска которых прошло не более 3 лет | AK21: 1101
A22: средней стоимостью менее 3 миллионов рублей, с года выпуска которых прошло более 3 лет | AK22: 1102
A23: средней стоимостью от 3 миллионов до 5 миллионов рублей включительно, с года выпуска которых прошло не более 3 лет | AK23: 1103
A24: средней стоимостью от 3 миллионов до 5 миллионов рублей включительно, с года выпуска которых прошло более 3 лет | AK24: 1104
A25: средней стоимостью от 5 миллионов до 10 миллионов рублей включительно, с года выпуска которых прошло не более 3 лет | AK25: 1105
A26: средней стоимостью от 5 миллионов до 10 миллионов рублей включительно, с года выпуска которых прошло более 3 лет | AK26: 1106
A27: средней стоимостью от 10 миллионов до 15 миллионов рублей включительно | AK27: 1107
A28: средней стоимостью от 15 миллионов рублей | AK28: 1108
A29: автомобили скорой медицинской помощи | AK29: 1200
A30: автомобили грузовые, за исключением специальных | AK30: 1300
A31: специальные грузовые автомашины (молоковозы, скотовозы, специальные машины для перевозки птицы, машины для перевозки минеральных удобрений, ветеринарной помощи, технического обслуживания) | AK31: 1400
A32: автобусы | AK32: 1500
A33: тракторы самоходные, комбайны | AK33: 1600
A34: мотосани, снегоходы | AK34: 1700 | AQ34: 94760 | BF34: 94760 | BU34: 1 | CK34: 1 | DA34: 0 | DQ34: 0 | EG34: 0 | EW34: 0
A35: прочие самоходные машины и механизмы на пневматическом и гусеничном ходу | AK35: 1800
A36: мотоциклы, мотороллеры | AK36: 1900
A37: Наименование показателя | AK37: Код строки | AQ37: Транспортные средства, ед.
AQ38: всего | BU38: в том числе:
BU39: в оперативном управлении учреждения | DA39: по договорам аренды | EG39: по договорам безвозмездного пользования
AQ40: на отчетную дату | BF40: в среднем за год | BU40: на отчетную дату | CK40: в среднем за год | DA40: на отчетную дату | DQ40: в среднем за год | EG40: на отчетную дату | EW40: в среднем за год
A41: 1 | AK41: 2 | AQ41: 3 | BF41: 4 | BU41: 5 | CK41: 6 | DA41: 7 | DQ41: 8 | EG41: 9 | EW41: 10
A42: Воздушные судна | AK42: 2000
A43: самолеты, всего | AK43: 2100
A44: в том числе:30 самолеты пассажирские | AK44: 2101
A45: самолеты грузовые | AK45: 2102
A46: самолеты пожарные | AK46: 2103
A47: самолеты аварийно-технической службы | AK47: 2104
A48: другие самолеты | AK48: 2105
A49: вертолеты, всего | AK49: 2200
A50: в том числе:30 вертолеты пассажирские | AK50: 2201
A51: вертолеты грузовые | AK51: 2202
A52: вертолеты пожарные | AK52: 2203
A53: вертолеты аварийно-технической службы | AK53: 2204
A54: другие вертолеты | AK54: 2205
A55: воздушные транспортные средства, не имеющие двигателей | AK55: 2206
A56: Водные транспортные средства | AK56: 3000
A57: суда пассажирские морские и речные | AK57: 3100
A58: суда грузовые морские и речные самоходные | AK58: 3200
A59: яхты | AK59: 3300
A60: катера | AK60: 3400
A61: гидроциклы | AK61: 3500
A62: моторные лодки | AK62: 3600
A63: парусно-моторные суда | AK63: 3700
A64: другие водные транспортные средства самоходные | AK64: 3800
A65: несамоходные (буксируемые) суда и иные транспортные средства (водные транспортные средства, не имеющие двигателей) | AK65: 3900
A66: Итого | AK66: 9000 | AQ66: 94760 | BF66: 94760 | BU66: 1 | CK66: 1 | DA66: 0 | DQ66: 0 | EG66: 0 | EW66: 0
A69: 30_Показатели формируются в случае, если требование о детализации установлено органом, осуществляющим функции и полномочия учредителя.
B71: Раздел 2. Сведения о неиспользуемых транспортных средствах, находящихся в оперативном управлении учреждения
A73: Наименование показателя | AK73: Код строки | AQ73: Передано во временное пользование сторонним организациям (индивидуальным предпринимателям) | CQ73: Не используется
AQ74: всего | AX74: в том числе: | CQ74: всего | DA74: в том числе:
AX75: на основании договоров аренды | BM75: на основании договоров безвозмездного пользования | CB75: без оформления права пользования | DA75: проводится капитальный ремонт и/или реконструкция | DQ75: в связи с аварийным состоянием (требуется ремонт) | EG75: в связи с аварийным состоянием (подлежит списанию)31 | EW75: излишнее имущество (подлежит передаче в казну РФ)
A76: 1 | AK76: 2 | AQ76: 3 | AX76: 4 | BM76: 5 | CB76: 6 | CQ76: 7 | DA76: 8 | DQ76: 9 | EG76: 10 | EW76: 11
A77: Наземные транспортные средства | AK77: 1000
A78: автомобили легковые (за исключением автомобилей скорой медицинской помощи), всего | AK78: 1100
A79: в том числе:30 средней стоимостью менее 3 миллионов рублей, с года выпуска которых прошло не более 3 лет | AK79: 1101
A80: средней стоимостью менее 3 миллионов рублей, с года выпуска которых прошло более 3 лет | AK80: 1102
A81: средней стоимостью от 3 миллионов до 5 миллионов рублей включительно, с года выпуска которых прошло не более 3 лет | AK81: 1103
A82: средней стоимостью от 3 миллионов до 5 миллионов рублей включительно, с года выпуска которых прошло более 3 лет | AK82: 1104
A83: средней стоимостью от 5 миллионов до 10 миллионов рублей включительно, с года выпуска которых прошло не более 3 лет | AK83: 1105
A84: средней стоимостью от 5 миллионов до 10 миллионов рублей включительно, с года выпуска которых прошло более 3 лет | AK84: 1106
A85: средней стоимостью от 10 миллионов до 15 миллионов рублей включительно | AK85: 1107
A86: средней стоимостью от 15 миллионов рублей | AK86: 1108
A87: автомобили скорой медицинской помощи | AK87: 1200
A88: автомобили грузовые, за исключением специальных | AK88: 1300
A89: специальные грузовые автомашины (молоковозы, скотовозы, специальные машины для перевозки птицы, машины для перевозки минеральных удобрений, ветеринарной помощи, технического обслуживания) | AK89: 1400
A90: автобусы | AK90: 1500
A91: тракторы самоходные, комбайны | AK91: 1600
A92: мотосани, снегоходы | AK92: 1700
A93: прочие самоходные машины и механизмы на пневматическом и гусеничном ходу | AK93: 1800
A94: мотоциклы, мотороллеры | AK94: 1900
A95: Наименование показателя | AK95: Код строки | AQ95: Передано во временное пользование сторонним организациям (индивидуальным предпринимателям) | CQ95: Не используется
AQ96: всего | AX96: в том числе: | CQ96: всего | DA96: в том числе:
AX97: на основании договоров аренды | BM97: на основании договоров безвозмездного пользования | CB97: без оформления права пользования | DA97: проводится капитальный ремонт и/или реконструкция | DQ97: в связи с аварийным состоянием (требуется ремонт) | EG97: в связи с аварийным состоянием (подлежит списанию)31 | EW97: излишнее имущество (подлежит передаче в казну РФ)
A98: 1 | AK98: 2 | AQ98: 3 | AX98: 4 | BM98: 5 | CB98: 6 | CQ98: 7 | DA98: 8 | DQ98: 9 | EG98: 10 | EW98: 11
A99: Воздушные судна | AK99: 2000
A100: самолеты, всего | AK100: 2100
A101: в том числе:30 самолеты пассажирские | AK101: 2101
A102: самолеты грузовые | AK102: 2102
A103: самолеты пожарные | AK103: 2103
A104: самолеты аварийно-технической службы | AK104: 2104
A105: другие самолеты | AK105: 2105
A106: вертолеты, всего | AK106: 2200
A107: в том числе:30 вертолеты пассажирские | AK107: 2201
A108: вертолеты грузовые | AK108: 2202
A109: вертолеты пожарные | AK109: 2203
A110: вертолеты аварийно-технической службы | AK110: 2204
A111: другие вертолеты | AK111: 2205
A112: воздушные транспортные средства, не имеющие двигателей | AK112: 2206
A113: Водные транспортные средства | AK113: 3000
A114: суда пассажирские морские и речные | AK114: 3100
A115: суда грузовые морские и речные самоходные | AK115: 3200
A116: яхты | AK116: 3300
A117: катера | AK117: 3400
A118: гидроциклы | AK118: 3500
A119: моторные лодки | AK119: 3600
A120: парусно-моторные суда | AK120: 3700
A121: другие водные транспортные средства самоходные | AK121: 3800
A122: несамоходные (буксируемые) суда и иные транспортные средства (водные транспортные средства, не имеющие двигателей) | AK122: 3900
A123: Итого | AK123: 9000
A126: 31_Указываются транспортные средства, в отношении которых принято решение о списании, ожидается согласование органом, осуществляющим функции и полномочия учредителя.
B128: Раздел 3. Направления использования транспортных средств
A130: Наименование показателя | Y130: Код строки | AD130: Транспортные средства, непосредственно используемые в целях оказания услуг, выполнения работ | BW130: Транспортные средства, используемые в общехозяйственных целях
BW131: в целях обслуживания административно-управленческого персонала | DQ131: в иных целях 32
AD132: всего | AO132: в том числе: | BW132: всего | CI132: в том числе: | DQ132: всего | EC132: в том числе:
AO133: в оперативном управлении учреждения, ед. | AZ133: по договорам аренды, ед. | BL133: по договорам безвозмездного пользования, ед. | CI133: в оперативном управлении учреждения, ед. | CT133: по договорам аренды, ед. | DF133: по договорам безвозмездного пользования, ед. | EC133: в оперативном управлении учреждения, ед. | EN133: по договорам аренды, ед. | EZ133: по договорам безвозмездного пользования, ед.
AD134: на отчетную дату | AJ134: в среднем за год | AO134: на отчетную дату | AU134: в среднем за год | AZ134: на отчетную дату | BF134: в среднем за год | BL134: на отчетную дату | BR134: в среднем за год | BW134: на отчетную дату | CC134: в среднем за год | CI134: на отчетную дату | CO134: в среднем за год | CT134: на отчетную дату | CZ134: в среднем за год | DF134: на отчетную дату | DL134: в среднем за год | DQ134: на отчетную дату | DW134: в среднем за год | EC134: на отчетную дату | EI134: в среднем за год | EN134: на отчетную дату | ET134: в среднем за год | EZ134: на отчетную дату | FF134: в среднем за год
A135: 1 | Y135: 2 | AD135: 3 | AJ135: 4 | AO135: 5 | AU135: 6 | AZ135: 7 | BF135: 8 | BL135: 9 | BR135: 10 | BW135: 11 | CC135: 12 | CI135: 13 | CO135: 14 | CT135: 15 | CZ135: 16 | DF135: 17 | DL135: 18 | DQ135: 19 | DW135: 20 | EC135: 21 | EI135: 22 | EN135: 23 | ET135: 24 | EZ135: 25 | FF135: 26
A136: Наземные транспортные средства | Y136: 1000
A137: автомобили легковые (за исключением автомобилей скорой медицинской помощи), всего | Y137: 1100
A138: в том числе:30 средней стоимостью менее 3 миллионов рублей, с года выпуска которых прошло не более 3 лет | Y138: 1101
A139: средней стоимостью менее 3 миллионов рублей, с года выпуска которых прошло более 3 лет | Y139: 1102
A140: средней стоимостью от 3 миллионов до 5 миллионов рублей включительно, с года выпуска которых прошло не более 3 лет | Y140: 1103
A141: средней стоимостью от 3 миллионов до 5 миллионов рублей включительно, с года выпуска которых прошло более 3 лет | Y141: 1104
A142: средней стоимостью от 5 миллионов до 10 миллионов рублей включительно, с года выпуска которых прошло не более 3 лет | Y142: 1105
A143: средней стоимостью от 5 миллионов до 10 миллионов рублей включительно, с года выпуска которых прошло более 3 лет | Y143: 1106
A144: средней стоимостью от 10 миллионов до 15 миллионов рублей включительно | Y144: 1107
A145: средней стоимостью от 15 миллионов рублей | Y145: 1108
A146: автомобили скорой медицинской помощи | Y146: 1200
A147: автомобили грузовые, за исключением специальных | Y147: 1300
A148: специальные грузовые автомашины (молоковозы, скотовозы, специальные машины для перевозки птицы, машины для перевозки минеральных удобрений, ветеринарной помощи, технического обслуживания) | Y148: 1400
A149: автобусы | Y149: 1500
A150: тракторы самоходные, комбайны | Y150: 1600
A151: мотосани, снегоходы | Y151: 1700
A152: прочие самоходные машины и механизмы на пневматическом и гусеничном ходу | Y152: 1800
A153: мотоциклы, мотороллеры | Y153: 1900
A155: Наименование показателя | Y155: Код строки | AD155: Транспортные средства, непосредственно используемые в целях оказания услуг, выполнения работ | BW155: Транспортные средства, используемые в общехозяйственных целях
BW156: в целях обслуживания административно-управленческого персонала | DQ156: в иных целях 32
AD157: всего | AO157: в том числе: | BW157: всего | CI157: в том числе: | DQ157: всего | EC157: в том числе:
AO158: в оперативном управлении учреждения, ед. | AZ158: по договорам аренды, ед. | BL158: по договорам безвозмездного пользования, ед. | CI158: в оперативном управлении учреждения, ед. | CT158: по договорам аренды, ед. | DF158: по договорам безвозмездного пользования, ед. | EC158: в оперативном управлении учреждения, ед. | EN158: по договорам аренды, ед. | EZ158: по договорам безвозмездного пользования, ед.
AD159: на отчетную дату | AJ159: в среднем за год | AO159: на отчетную дату | AU159: в среднем за год | AZ159: на отчетную дату | BF159: в среднем за год | BL159: на отчетную дату | BR159: в среднем за год | BW159: на отчетную дату | CC159: в среднем за год | CI159: на отчетную дату | CO159: в среднем за год | CT159: на отчетную дату | CZ159: в среднем за год | DF159: на отчетную дату | DL159: в среднем за год | DQ159: на отчетную дату | DW159: в среднем за год | EC159: на отчетную дату | EI159: в среднем за год | EN159: на отчетную дату | ET159: в среднем за год | EZ159: на отчетную дату | FF159: в среднем за год
A160: 1 | Y160: 2 | AD160: 3 | AJ160: 4 | AO160: 5 | AU160: 6 | AZ160: 7 | BF160: 8 | BL160: 9 | BR160: 10 | BW160: 11 | CC160: 12 | CI160: 13 | CO160: 14 | CT160: 15 | CZ160: 16 | DF160: 17 | DL160: 18 | DQ160: 19 | DW160: 20 | EC160: 21 | EI160: 22 | EN160: 23 | ET160: 24 | EZ160: 25 | FF160: 26
A161: Воздушные судна | Y161: 2000
A162: самолеты, всего | Y162: 2100
A163: в том числе:30 самолеты пассажирские | Y163: 2101
A164: самолеты грузовые | Y164: 2102
A165: самолеты пожарные | Y165: 2103
A166: самолеты аварийно-технической службы | Y166: 2104
A167: другие самолеты | Y167: 2105
A168: вертолеты, всего | Y168: 2200
A169: в том числе:30 вертолеты пассажирские | Y169: 2201
A170: вертолеты грузовые | Y170: 2202
A171: вертолеты пожарные | Y171: 2203
A172: вертолеты аварийно-технической службы | Y172: 2204
A173: другие вертолеты | Y173: 2205
A174: воздушные транспортные средства, не имеющие двигателей | Y174: 2206
A175: Водные транспортные средства | Y175: 3000
A176: суда пассажирские морские и речные | Y176: 3100
A177: суда грузовые морские и речные самоходные | Y177: 3200
A178: яхты | Y178: 3300
A179: катера | Y179: 3400
A180: гидроциклы | Y180: 3500
A181: моторные лодки | Y181: 3600
A182: парусно-моторные суда | Y182: 3700
A183: другие водные транспортные средства самоходные | Y183: 3800
A184: несамоходные (буксируемые) суда и иные транспортные средства (водные транспортные средства, не имеющие двигателей) | Y184: 3900
A185: Итого | Y185: 9000
A188: 32_Указываются транспортные средства, используемые в целях уборки территории, вывоза мусора, перевозки имущества (грузов), а также в целях перевозки людей.
B190: Раздел 4. Сведения о расходах на содержание транспортных средств
A192: Наименование показателя | AK192: Код строки | AQ192: Расходы на содержание транспортных средств
AQ193: всего за отчетный период | AY193: в том числе:
AY194: на обслуживание транспортных средств | DH194: содержание гаражей | EA194: заработная плата обслуживающего персонала | FA194: уплата транспортного налога
AY195: расходы на горюче-смазочные материалы | BH195: приобретение (замена) колес, шин, дисков | BR195: расходы на ОСАГО | BY195: расходы на добровольное страхование | CI195: ремонт, включая приобретение запасных частей | CU195: техобслуживание сторонними организациями | DH195: аренда гаражей, парковочных мест | DR195: содержание гаражей | EA195: водителей | EI195: обслужи-вающего персонала гаражей | ER195: администра-тивного персонала гаражей
A196: 1 | AK196: 2 | AQ196: 3 | AY196: 4 | BH196: 5 | BR196: 6 | BY196: 7 | CI196: 8 | CU196: 9 | DH196: 10 | DR196: 11 | EA196: 12 | EI196: 13 | ER196: 14 | FA196: 15
A197: Наземные транспортные средства | AK197: 1000
A198: автомобили легковые (за исключением автомобилей скорой медицинской помощи), всего | AK198: 1100
A199: в том числе:30 средней стоимостью менее 3 миллионов рублей, с года выпуска которых прошло не более 3 лет | AK199: 1101
A200: средней стоимостью менее 3 миллионов рублей, с года выпуска которых прошло более 3 лет | AK200: 1102
A201: средней стоимостью от 3 миллионов до 5 миллионов рублей включительно, с года выпуска которых прошло не более 3 лет | AK201: 1103
A202: средней стоимостью от 3 миллионов до 5 миллионов рублей включительно, с года выпуска которых прошло более 3 лет | AK202: 1104
A203: средней стоимостью от 5 миллионов до 10 миллионов рублей включительно, с года выпуска которых прошло не более 3 лет | AK203: 1105
A204: средней стоимостью от 5 миллионов до 10 миллионов рублей включительно, с года выпуска которых прошло более 3 лет | AK204: 1106
A205: средней стоимостью от 10 миллионов до 15 миллионов рублей включительно | AK205: 1107
A206: средней стоимостью от 15 миллионов рублей | AK206: 1108
A207: автомобили скорой медицинской помощи | AK207: 1200
A208: автомобили грузовые, за исключением специальных | AK208: 1300
A209: специальные грузовые автомашины (молоковозы, скотовозы, специальные машины для перевозки птицы, машины для перевозки минеральных удобрений, ветеринарной помощи, технического обслуживания) | AK209: 1400
A210: автобусы | AK210: 1500
A211: тракторы самоходные, комбайны | AK211: 1600
A212: мотосани, снегоходы | AK212: 1700
A213: прочие самоходные машины и механизмы на пневматическом и гусеничном ходу | AK213: 1800
A214: мотоциклы, мотороллеры | AK214: 1900
A215: Наименование показателя | AK215: Код строки | AQ215: Расходы на содержание транспортных средств
... 34 more rows

Sheet стр.32
FK1: (в ред. Приказа Минфина России от 08.11.2022 № 159н)
A3: Сведения об имуществе, за исключением земельных участков, переданном в аренду
EW5: КОДЫ
BS6: на 1 | BY6: января | CJ6: 20 | CM6: 24 | CP6: г. | EU6: Дата
EU7: по Сводному реестру
EU8: ИНН
A9: Учреждение | Z9: МБОУ "Средняя общеобразовательная школа № 85 с углубленным изучением отдельных предметов" Ново-Савиновского района г. Казани | EU9: КПП
A10: Орган, осуществляющий
A11: функции и полномочия учредителя | EU11: глава по БК
A12: Публично-правовое образование | EU12: по ОКТМО
A13: Периодичность: годовая
A16: Наименование объекта | AM16: Адрес 33 | BD16: Вид объекта 34 | BU16: Единица измерения | CR16: Код строки | DA16: Объем переданного имущества | DR16: Направление использования 35 | EN16: Комментарий 36
BU17: наименование | CG17: код по ОКЕИ
A18: 1 | AM18: 2 | BD18: 3 | BU18: 4 | CG18: 5 | CR18: 6 | DA18: 7 | DR18: 8 | EN18: 9
A19: Площадные объекты 25, всего | AM19: Х | BU19: Х | CG19: Х | CR19: 1000 | DA19: 136.3
A20: в том числе: | AM20: г.Казань, ул.Ямашева, д.100А | BD20: 2 | BU20: кв. м | CR20: 1001 | DA20: 136.3 | DR20: 14
BD21: 2 | BU21: кв. м
A22: Линейные объекты 26, всего | AM22: Х | BU22: Х | CG22: Х | CR22: 2000
A23: в том числе: | CR23: 2001
A25: Резервуары, емкости, иные аналогичные объекты, всего | AM25: Х | BU25: Х | CG25: Х | CR25: 3000
A26: в том числе: | CR26: 3001
A28: Скважины, иные аналогичные объекты, всего | AM28: Х | BU28: Х | CG28: Х | CR28: 4000
A29: в том числе: | CR29: 4001
A31: Иные объекты, включая точечные, всего | AM31: Х | BU31: Х | CG31: Х | CR31: 5000
A32: в том числе: | CR32: 5001
CQ34: Итого | CR34: 9000 | DA34: 136.3
A36: Руководитель
A37: (уполномоченное лицо) Учреждения
AM38: (должность) | BU38: (расшифровка подписи)
A39: Исполнитель
AM40: (должность) | BU40: (телефон)
A41: " | C41: 21 | F41: " | H41: 02 | R41: 20 | U41: 24 | X41: г.
A42: Хрипкова З.Р., тел. 598-33-22 (вн.5102)
A43: _____33_Заполняется в отношении недвижимого имущества.
A44: _____34_Указывается вид объекта: 1 - здание (строение, сооружение) в целом, 2 - помещение в здании, строении (за исключением подвалов, чердаков), 3 - подвалы, чердаки, 4 - конструктивная часть здания (крыша, стена), 5 - архитектурный элемент фасада здания (навес над входными дверями зданий), 6 - часть помещения в местах общего пользования (вестибюли, холлы, фойе, коридоры), 7 - линии электропередачи, линии связи (в том числе линейно-кабельные сооружения), 8 - трубопроводы, 9 - автомобильные дороги, 10 - железнодорожные линии, 11 - резервуар, иная емкость, 12 - скважины на воду, 13 - скважины газовые и нефтяные, 14 - скважины иные, 15 - движимое имущество, предоставляемое в прокат, 16 - иные.
A45: _____35_Указывается направление использования имущества, переданного в аренду (разрешенное использование): 1 - размещение банкоматов, 2 - размещение торговых автоматов для продажи воды, кофе и кондитерских изделий, 3 - размещение столовых и буфетов, 4 - размещение книжных киосков, магазинов канцелярских принадлежностей, 5 - размещение аптечных пунктов, 6 - размещение торговых автоматов для продажи бахил, одноразовых халатов, 7 - размещение платежных терминалов, 8 - размещение иных торговых точек, 9 - размещение офисов банков, 10 - проведение образовательных и информационно-просветительских мероприятий, 11 - проведение концертно-зрелищных мероприятий, 12 - проведение ярмарок, выставок, 13 - проведение конгрессов, съездов, симпозиумов, конференций, 14 - проведение спортивных мероприятий, 15 - проведение иных культурно-массовых мероприятий, 16 - прокат оборудования, 17 - прокат спортивного инвентаря, 18 - иное.
A46: _____36_В случае указания в графе 8 значения "18 - иное" указывается направление использования переданного в аренду имущества.
